Workbook

Sheet USER INTERFACE
E2: Shared Used Path Design Guide | AA2: INSTRUCTIONS & INFORMATION SEEN BELOW - WILL NOT PRINT
AA3: Press [Tab] or use your mouse to move between fields.
Q4: DO NOT MOVE CELLS | AA4: Color Key:
E5: Cost Estimator
C8: PROJECT INPUTS - PAGE 1 OF 2
C9: PROJECT DESCRIPTION | I9: INPUT | J9: CLICK INFO | Q9: Surface Materials | U9: Bridge | X9: Yes/No | Y9: Landscaping
Q10: Asphalt | U10: Yes | X10: Yes | Y10: Minimal
B11: 1 | C11: What year is the project expected to begin construction? | Q11: Porous Pavement | U11: No | X11: No | Y11: Moderate
Q12: Unpaved | U12: Substructure Only | Y12: Advanced
B13: 2 | C13: Should the estimate include cost of engineering design and/or traffic control? | Q13: Concrete | U13: Needs replacement
Q14: Stabilized Aggregate | AA14: Please make sure Calculation are set to "Automatic" as seen below. File -> Formulas -> Calculation Options -> Automatic
B15: 3 | C15: How many distinct segments of path are there? (differing exist. or prop. conditons) | Q15: Crushed Stone | U15: Drainage | X15: Security
C16: Input a number between 1 and 4. | G16: =IF($I$15>=1,"Segment 1","") ->  | H16: =IF($I$15>=2,"Segment 2","") ->  | I16: =IF($I$15>=3,"Segment 3","") ->  | J16: =IF($I$15>=4,"Segment 4","") ->  | Q16: Grass | U16: Open Drainage | X16: Yes, full length
B17: 4 | C17: What is the length of the segment of path? (in feet) | Q17: Milling Mulch | U17: Closed Drainage | X17: Yes, partial length
B18: 5 | C18: What are the existing conditions of the area? | Q18: Location | X18: Only at Crossings
B19: 6 | C19: What type of path is being proposed? | Q19: Intersection (Stop/Signals) | U19: Design/TTCP | X19: Partial Length+Crossings
B20: 7 | C20: What material will the shared used path be? | Q20: Intersection (Uncontrolled) | U20: Design | X20: No
B21: 8 | C21: What material will the shoulders be? | Q21: Mid-Block | U21: Traffic Control | X21: Survey
B22: 9 | C22: What is the width of the path? (Typ. range: 10 ft to 14 ft) | U22: Both | X22: =SURVEY!$D$15 -> Clear/flat | AA22: Please make sure that Macros are enabled as shown below. File -> Options -> Trust Center -> Trust Center Settings -> Macro Settings -> Enable all macros
B23: 10 | C23: Will a separate equestrian path be provided? | U23: Neither | X23: =SURVEY!$D$17 -> Roadway
G24: *Clear out any extra data shown in red* | X24: =SURVEY!$D$18 -> Wooded/hilly
B25: 11 | C25: What length of the path requires boardwalk due to unavoidable wetlands? | Q25: Traffic | S25: Type | U25: Proposed | X25: Waterfront
C26: Please see the Guidance Document and consult the MassGIS website to locate wetlands: | I26: OLIVER | Q26: Light | S26: At-Grade | U26: Rail with Trail | X26: Utility Corridor
B27: 12 | C27: Are there steep separations or resource areas that may require retaining walls? | Q27: Moderate | S27: Underpass | U27: Rail Trail (w/ exist. rail) | X27: ROW | AG27: This bar may show up at start-up.
Q28: Heavy | S28: Overpass | U28: Rail Trail (w/o exist. rail) | X28: In scarce locations | AA28: OR
B29: 13 | C29: Is the ROW constrained in any locations? | U29: Roadway Sidepath | X29: Some of the length
Q30: Parking | S30: Speed | U30: Other SUP | X30: Most of the length
B31: 14 | C31: How many crossings with roadways are there? | Q31: Porous Asphalt | S31: <30 | U31: Equestrian
C32: Please fill in the information in the chart on the next page. | Q32: Typical Asphalt | S32: 30-40 | U32: Yes, grass | X32: One Way
B33: 15 | C33: How many crossings are there over bodies of water? | Q33: Unpaved | S33: >40 | U33: Yes, unpaved | X33: One Way
C34: Please fill in the information in the chart on the next page. | U34: No | X34: Two Way
B35: 16 | C35: How many crossings are there with a active railroads?
C36: Please fill in the information in the chart on the next page. | Q36: =YEAR(TODAY()) -> 2021 | R36: <-- CURRENT YEAR
U37: Lighting
B38: 17 | C38: What is the extent of landscape restoration and enhancements? | U38: Yes, new lighting
U39: Use existing lighting
B40: 18 | C40: How many parking spaces will be provided? | U40: No lighting required
B41: 18a | C41: What will be the material of the parking lot?
B43: 19 | C43: Will the path require lighting along its length?
B44: 19a | C44: If not along the entire length, what length requires lighting?
B45: 19b | C45: If there is lighting, should security be included?
H46: =IF(ISNUMBER(SEARCH("partial",$I$45)),"Input partial length -->","") ->  | J46: =IF(ISNUMBER(SEARCH("partial",$I$45)),"ft","") -> 
I47: Click Button before proceeding
E49: Shared Used Path Design Guide
E52: Cost Estimator
C55: PROJECT INPUTS - PAGE 2 OF 2
C57: Roadway Crossing Information Table
B59: # | C59: Location | E59: Speed (mph) | F59: Total # Lanes | G59: Traffic | H59: Type | I59: Lighting Needs | J59: Treatment
A60: 1 | B60: =IF($I$31>=A60,A60,"") ->  | J60: =IF(B60="","",IF(OR(F60="",G60="",H60=""),"Fill in other Inputs",IF(Q60="","",IF(Q60="Bridge","Bridge",IF(Q60="Culvert","Culvert",IF(Q60="Nothing","None","Traffic Device")))))) ->  | Q60: =IF(B60="","",IF(H60=$S$28,"Bridge",IF(H60=$S$27,"Culvert",IF(C60=$Q$19,"Nothing",IF(F60=1,VLOOKUP(G60,$C$100:$F$103,MATCH(E60,$C$100:$F$100,0),FALSE),IF(F60=2,VLOOKUP(G60,$C$105:$F$108,MATCH(E60,$C$105:$F$105,0),FALSE),VLOOKUP(G60,$C$110:$F$113,MATCH(E60,$C$110:$F$110,0),FALSE))))))) -> 
A61: 2
A62: 3
A63: 4
A64: 5
A65: 6
A66: 7
A67: 8
A68: 9 | L68: =IF(B68="","",IF(OR(F68="",G68="",H68=""),"Fill in other Inputs",IF(H68=$S$26,IF(F68<=2,IF(G68="Light","RRFB","HAWK"),IF(G68="Light","HAWK","Signalization")),IF(H68=$S$27,"Culvert","Bridge")))) -> 
A69: 10
A70: 11
A71: 12
A72: 13
A73: 14
A74: 15
A75: 16
A76: 17
A77: 18
A78: 19
A79: 20
C81: River Crossing Information Table | G81: Railroad Crossing Information Table
B83: # | C83: River Width (ft) | D83: Existing Bridge? | E83: Lighting Needs | F83: # | G83: Length (ft) | H83: Type | I83: Existing Structure? | J83: Lighting Needs
A84: 1 | B84: =IF($I$33>=A84,A84,"") ->  | F84: =IF($I$35>=L84,L84,"") ->  | L84: 1
A85: 2 | L85: 2
A86: 3 | L86: 3
A87: 4 | L87: 4
A88: 5 | L88: 5
A89: 6 | L89: 6
A90: 7 | L90: 7
A91: 8 | L91: 8
I94: Click Button before proceeding
D99: 1
D100: =$S$31 -> <30 | E100: =$S$32 -> 30-40 | F100: =$S$33 -> >40
C101: Light | D101: RRFB | E101: RRFB | F101: RRFB
C102: Moderate | D102: RRFB | E102: RRFB | F102: RRFB
C103: Heavy | D103: RRFB | E103: HAWK | F103: HAWK
D104: 2
D105: =$S$31 -> <30 | E105: =$S$32 -> 30-40 | F105: =$S$33 -> >40
C106: Light | D106: RRFB | E106: HAWK | F106: HAWK
C107: Moderate | D107: HAWK | E107: HAWK | F107: Signalization
C108: Heavy | D108: HAWK | E108: Signalization | F108: Signalization
D109: 3
D110: =$S$31 -> <30 | E110: =$S$32 -> 30-40 | F110: =$S$33 -> >40
C111: Light | D111: HAWK | E111: HAWK | F111: HAWK
C112: Moderate | D112: HAWK | E112: Signalization | F112: Signalization
C113: Heavy | D113: Signalization | E113: Signalization | F113: Signalization

Sheet ASSUMPTIONS
E2: Shared Used Path Design Guide
E5: Cost Estimator
C8: ESTIMATING TOOL ASSUMPTIONS
C10: The statewide unit cost prices are exported from the MassDOT website.
C12: Estimating tool excludes costs associated with environmental permitting and right-of-way.
C14: Two (2) foot shoulders are also assumed on each side of the path.
C16: Assume there is a wooden rail fence for 50% of length if area identified as hilly or waterfront; 25% otherwise. Boardwalks are assumed to have fencing along their entire length on both sides.
C19: For a roadway sidepath, assume closed drainage and curbing are required.
C20: Catch basins and manholes are placed every 250 feet and granite curb is estimated for the length of the segment(s).
C22: Culverts are assumed to meet the minimum size requirements using a 10' x 16' precast box.
C24: Light standards are placed every 50 feet along the length of the path.
C26: The tool can perform estimates for shared use paths within the following ranges:
C27: 20 roadway crossings, 5 river crossings, 5 railroad crossings
C29: Assume two (2) curb ramps at each intersection crossing, each with an area of about 15 square yards.
C31: Security cameras will be hard-wired to avoid monthly fees & storage issues. Connection to data centers not included.
C33: Surveillance cameras are assumed at every 500 feet along the length for which security is required.
C35: The design cost associated with landscaping is included in the estimated cost.
C37: Work limits do not extend on to side streets at intersections. This work must be calculated outside of the tool.
C39: Survey cost is calculated using an average base price developed through analysis of current design projects and a multiplier based on existing conditions specified on Projects Inputs - Page 1 of 2.

Sheet SUMMARY
E2: Shared Used Path Design Guide
E5: Cost Estimator
C8: PROJECT COST SUMMARY
C9: Project Name: | D9: Please enter Project Name here
C10: Project Location: | D10: Please enter Project Town here
C12: PROJECT CATEGORY | I12: ESTIMATED PRICE
C13: Path | D13: Length: | E13: =AREA!H31 -> 0 | F13: Width: | G13: =SMALL('USER INTERFACE'!G22:J22,COUNTIF('USER INTERFACE'!G22:J22,0)+1)&" ft"&IF(MAX('USER INTERFACE'!G22:J22)<>SMALL('USER INTERFACE'!G22:J22,COUNTIF('USER INTERFACE'!G22:J22,0)+1)," to "&MAX('USER INTERFACE'!G22:J22)&" ft","") ->  | I13: =ROUND(ASPHALT!$I$43+'POROUS ASPHALT'!$I$43+'STONE DUST'!I43+'STABILIZED AGG'!I43+CONCRETE!$I$43+'CRUSHED STONE'!$I$43+DRAINAGE!$I$43+INTERSECTIONS!$I$43+ENVIRONMENTAL!$I$43,-2) -> 0
D14: # Segments: | E14: ='USER INTERFACE'!$I$15 -> 0 | F14: # Intersections: | G14: ='USER INTERFACE'!$I$31 -> 0
C15: Structures | I15: =ROUND('RETAINING WALL'!$I$43+BOARDWALK!$I$43+CULVERT!$I$43+BRIDGE!$I$55,-2) -> 0
C17: Landscaping Restoration & Enhancements | I17: =ROUND(LANDSCAPING!$I$43+PARKING!$I$54+MISC!$I$43,-2) -> 0
C19: Lighting & Security | I19: =ROUND(LIGHTING!$I$64+SECURITY!$I$43,-2) -> 0
C21: CONSTRUCTION COST
C22: Traffic Control | D22: =IF('USER INTERFACE'!$I$13='USER INTERFACE'!$U$21,"Assume "&TTCP!M21&"% of construction cost",IF('USER INTERFACE'!$I$13='USER INTERFACE'!$U$22,"Assume 4% of construction cost","Traffic cost not included")) -> Traffic cost not included | H22: TTCP COST | I22: =ROUND(IF('USER INTERFACE'!$I$13='USER INTERFACE'!$U$21,TTCP!$I$43,IF('USER INTERFACE'!$I$13='USER INTERFACE'!$U$22,TTCP!$I$43,0)),-1) -> 0
H23: SUBTOTAL | I23: =SUM(I13:I22) -> 0
H24: Contingency (assume 15%) | I24: =I23*0.15 -> 0
H26: CONSTRUCTION COST | I26: =SUM(I23:I24) -> 0 | J26: **
C28: Cost Escalation | E28: Construction Year: | F28: ='USER INTERFACE'!$I$11 -> 0 | H28: CONSTRUCTION TOTAL | I28: =ROUND(I26*1.0447^(F28-YEAR(TODAY())),-1) -> 0
C29: Assumed 4.47% increase in costs per year | H29: COST PER MILE | I29: =IF(I28>0,ROUND($I$28/AREA!H31*5280,-1),0) -> 0
C31: **Use this estimated cost on PIF forms - escalation is already included on the MassDOT Website
C32: NON-CONSTRUCTION COSTS (NOT ESCALATED)
C33: Survey | D33: Based on existing conditons | H33: SURVEY COST | I33: =ROUND(SURVEY!$I$43,-2) -> 0
C34: Design | D34: =IF('USER INTERFACE'!$I$13='USER INTERFACE'!$U$20,"Assume "&DESIGN!M21&"% of construction cost",IF('USER INTERFACE'!$I$13='USER INTERFACE'!$U$22,"Assume "&DESIGN!M21&"% of construction cost","Design cost not included")) -> Design cost not included | H34: DESIGN COST | I34: =IF('USER INTERFACE'!$I$13='USER INTERFACE'!$U$20,DESIGN!$I$43,IF('USER INTERFACE'!$I$13='USER INTERFACE'!$U$22,DESIGN!$I$43,0)) -> 0
H36: PROJECT TOTAL | I36: =I28+SUM(I33:I34) -> 0
M38: DO NOT MOVE CELLS
C39: -Costs for ROW and permitting are not included in this estimate. | L39: - | M39: -Costs for ROW and permitting are not included in this estimate.
C40: -Environmental mitigation from paving a parking lot may be required. Cost not included. | L40: - | M40: =IF(AND('USER INTERFACE'!I40>0,'USER INTERFACE'!I41='USER INTERFACE'!Q32),"-Environmental mitigation from paving a parking lot may be required. Cost not included.","") -> 
C41: -Your project includes culverts and/or bridges. Please consult a structural engineer for more accurate costs. | L41: - | M41: =IF(OR('USER INTERFACE'!I33>0,COUNTIF('USER INTERFACE'!Q60:R79,"Culvert")),"-Your project includes culverts and/or bridges. Please consult a structural engineer for more accurate costs.","") -> 
L42: - | M42: =IF('USER INTERFACE'!I44>AREA!$H$31,"-ERROR: Lighting length should not be more than total trail length.","") -> 
L43: - | M43: =IF('USER INTERFACE'!I46>AREA!$H$31,"-ERROR: Security length should not be more than total trail length.","") -> 
L44: - | M44: =IF(COUNTIF('USER INTERFACE'!G20:J20,'USER INTERFACE'!Q12),"-Some or all of this path is unpaved. This may not be ADA accessible and may not be eligible for federal funding.","") -> 
L45: - | M45: =IF((AREA!H33/AREA!H31)>0.25,"-There are significant wetlands within the project (>25%). Note that permitting is not included in this estimate.","") -> 
L46: - | M46: =IF(SUMIF('USER INTERFACE'!G19:J19,'USER INTERFACE'!U27,'USER INTERFACE'!G17:J17)>0,"-Some or all of this path is proposed on a railbed with existing ties. A contingency for contamination has been included.","") -> 
L47: - | M47: =IF(AND('USER INTERFACE'!I40>0,'USER INTERFACE'!I41='USER INTERFACE'!Q33),"-An unpaved parking lot would not provide accessible parking spaces.","") -> 
L48: - | M48: =IF(Q53>0,"-Some or all of this path is identified as a Rail Trail with wooded/hilly conditions. This is uncommon; please re-check inputs.","") -> 
M51: DO NOT MOVE CELLS
M52: Wooded and Hilly Segments? | Q52: #
M53: =IF(AND('USER INTERFACE'!G18='USER INTERFACE'!$X$24),ISNUMBER(SEARCH("Rail Trail",'USER INTERFACE'!G19))) -> FALSE | N53: =IF(AND('USER INTERFACE'!H18='USER INTERFACE'!$X$24),ISNUMBER(SEARCH("Rail Trail",'USER INTERFACE'!H19))) -> FALSE | O53: =IF(AND('USER INTERFACE'!I18='USER INTERFACE'!$X$24),ISNUMBER(SEARCH("Rail Trail",'USER INTERFACE'!I19))) -> FALSE | P53: =IF(AND('USER INTERFACE'!J18='USER INTERFACE'!$X$24),ISNUMBER(SEARCH("Rail Trail",'USER INTERFACE'!J19))) -> FALSE | Q53: =COUNTIF(M53:P53,"TRUE") -> 0

Sheet AREA (hidden)
E6: Shared Used Path Design Guide Cost Estimator
C9: AREA SUMMARY
H12: AREA* (SF) | I12: AREA (SY)
N13: START STA | P13: 150
C14: Wheelchair Ramps | H14: =('USER INTERFACE'!$I$31*2)*135 -> 0 | I14: =H14/9 -> 0 | N14: END STA | P14: 4150
C16: Asphalt | H16: =IF('USER INTERFACE'!$G$20='USER INTERFACE'!$Q10,'USER INTERFACE'!$G$17*'USER INTERFACE'!$G$22,0)+IF('USER INTERFACE'!$H$20='USER INTERFACE'!$Q10,'USER INTERFACE'!$H$17*'USER INTERFACE'!$H$22,0)+IF('USER INTERFACE'!$I$20='USER INTERFACE'!$Q10,'USER INTERFACE'!$I$17*'USER INTERFACE'!$I$22,0)+IF('USER INTERFACE'!$J$20='USER INTERFACE'!$Q10,'USER INTERFACE'!$J$17*'USER INTERFACE'!$J$22,0) -> 0 | I16: =H16/9 -> 0
C17: Porous Asphalt | H17: =IF('USER INTERFACE'!$G$20='USER INTERFACE'!$Q11,'USER INTERFACE'!$G$17*'USER INTERFACE'!$G$22,0)+IF('USER INTERFACE'!$H$20='USER INTERFACE'!$Q11,'USER INTERFACE'!$H$17*'USER INTERFACE'!$H$22,0)+IF('USER INTERFACE'!$I$20='USER INTERFACE'!$Q11,'USER INTERFACE'!$I$17*'USER INTERFACE'!$I$22,0)+IF('USER INTERFACE'!$J$20='USER INTERFACE'!$Q11,'USER INTERFACE'!$J$17*'USER INTERFACE'!$J$22,0) -> 0 | I17: =H17/9 -> 0
C18: Unpaved | H18: =IF('USER INTERFACE'!$G$20='USER INTERFACE'!$Q12,'USER INTERFACE'!$G$17*'USER INTERFACE'!$G$22,0)+IF('USER INTERFACE'!$H$20='USER INTERFACE'!$Q12,'USER INTERFACE'!$H$17*'USER INTERFACE'!$H$22,0)+IF('USER INTERFACE'!$I$20='USER INTERFACE'!$Q12,'USER INTERFACE'!$I$17*'USER INTERFACE'!$I$22,0)+IF('USER INTERFACE'!$J$20='USER INTERFACE'!$Q12,'USER INTERFACE'!$J$17*'USER INTERFACE'!$J$22,0) -> 0 | I18: 0
C19: Concrete | H19: =IF('USER INTERFACE'!$G$20='USER INTERFACE'!$Q13,'USER INTERFACE'!$G$17*'USER INTERFACE'!$G$22,0)+IF('USER INTERFACE'!$H$20='USER INTERFACE'!$Q13,'USER INTERFACE'!$H$17*'USER INTERFACE'!$H$22,0)+IF('USER INTERFACE'!$I$20='USER INTERFACE'!$Q13,'USER INTERFACE'!$I$17*'USER INTERFACE'!$I$22,0)+IF('USER INTERFACE'!$J$20='USER INTERFACE'!$Q13,'USER INTERFACE'!$J$17*'USER INTERFACE'!$J$22,0) -> 0 | I19: 0
C20: Stabilized Aggregate | H20: =IF('USER INTERFACE'!$G$20='USER INTERFACE'!$Q14,'USER INTERFACE'!$G$17*'USER INTERFACE'!$G$22,0)+IF('USER INTERFACE'!$H$20='USER INTERFACE'!$Q14,'USER INTERFACE'!$H$17*'USER INTERFACE'!$H$22,0)+IF('USER INTERFACE'!$I$20='USER INTERFACE'!$Q14,'USER INTERFACE'!$I$17*'USER INTERFACE'!$I$22,0)+IF('USER INTERFACE'!$J$20='USER INTERFACE'!$Q14,'USER INTERFACE'!$J$17*'USER INTERFACE'!$J$22,0) -> 0 | I20: =H20/9 -> 0
H29: LENGTH (FT) | I29: LENGTH (YD)
C31: Total Length of path | H31: =SUM('USER INTERFACE'!G17:J17) -> 0 | I31: =H31/3 -> 0
C33: Length of Boardwalk | H33: =BOARDWALK!$F$11 -> 0 | I33: =H33/3 -> 0
C35: Length of Culvert | H35: =CULVERT!$O$11 -> 0 | I35: =H35/3 -> 0
C37: Asphalt | H37: =SUMIF('USER INTERFACE'!$G$20:$J$20,'USER INTERFACE'!Q10,'USER INTERFACE'!$G$17:$J$17) -> 0 | I37: =H37/3 -> 0
C38: Porous Asphalt | H38: =SUMIF('USER INTERFACE'!$G$20:$J$20,'USER INTERFACE'!Q11,'USER INTERFACE'!$G$17:$J$17) -> 0 | I38: =H38/3 -> 0
C39: Unpaved | H39: =SUMIF('USER INTERFACE'!$G$20:$J$20,'USER INTERFACE'!Q12,'USER INTERFACE'!$G$17:$J$17) -> 0 | I39: 0
C40: Concrete | H40: =SUMIF('USER INTERFACE'!$G$20:$J$20,'USER INTERFACE'!Q13,'USER INTERFACE'!$G$17:$J$17) -> 0 | I40: 0
C41: Stabilized Aggregate | H41: =SUMIF('USER INTERFACE'!$G$20:$J$20,'USER INTERFACE'!Q14,'USER INTERFACE'!$G$17:$J$17) -> 0 | I41: =H41/3 -> 0

Sheet PRICES (hidden)
A1: Location | B1: Item # | C1: Description | D1: Units | E1: Quantity | F1: # of Projects | G1: Median Price | H1: Mean Price | I1: SUP Multiplier | J1: SUP Price | M1: Updated | N1: 2021-06-02
A2: All Districts | B2: 100 | C2: SCHEDULE OF OPERATIONS - FIXED PRICE $__________ | D2: LS | E2: 200 | F2: 34 | G2: 26500 | H2: 28050.02
A3: All Districts | B3: 100.001 | C3: ELECTRICIAN | D3: HR | E3: 24365 | F3: 5 | G3: 131 | H3: 128.62
A4: All Districts | B4: 100.002 | C4: LABORER | D4: HR | E4: 9106 | F4: 11 | G4: 92.5 | H4: 91.43
A5: All Districts | B5: 100.003 | C5: SKILLED LABORER | D5: HR | E5: 800 | F5: 1 | G5: 65 | H5: 58.75
A6: All Districts | B6: 100.005 | C6: PLUMBER | D6: HR | E6: 1120 | F6: 1 | G6: 145 | H6: 139.75
A7: All Districts | B7: 100.1 | C7: BASE LABOR RATE | D7: HR | E7: 357623 | F7: 39 | G7: 118 | H7: 118.46
A8: All Districts | B8: 100.4 | C8: STORAGE FACILITY OR BUILDING | D8: LS | E8: 6 | F8: 1 | G8: 581250 | H8: 559457.17
A9: All Districts | B9: 100.5 | C9: ELECTRICAL WORK | D9: LS | E9: 10 | F9: 3 | G9: 77000 | H9: 61048.6
A10: All Districts | B10: 100.61 | C10: HVAC WORK | D10: LS | E10: 4 | F10: 2 | G10: 645750 | H10: 732757.5
A11: All Districts | B11: 100.7 | C11: ROOFING AND FLASHING WORK | D11: LS | E11: 6 | F11: 1 | G11: 55000 | H11: 54910.83
A12: All Districts | B12: 100.71 | C12: MASONRY WORK | D12: LS | E12: 2 | F12: 1 | G12: 17450 | H12: 14015
A13: All Districts | B13: 100.75 | C13: PAINTING | D13: LS | E13: 9 | F13: 2 | G13: 60740 | H13: 70794.56
A14: All Districts | B14: 100.78 | C14: MISCELLANEOUS AND ORNAMENTAL IRON WORK | D14: LS | E14: 5 | F14: 1 | G14: 822000 | H14: 910400
A15: All Districts | B15: 101 | C15: CLEARING AND GRUBBING | D15: A | E15: 440.34 | F15: 59 | G15: 36000 | H15: 35950.71
A16: All Districts | B16: 101.1 | C16: CLEARING | D16: A | E16: 187.4 | F16: 11 | G16: 16650 | H16: 16153.77
A17: All Districts | B17: 102 | C17: SELECTIVE CLEARING AND THINNING | D17: A | E17: 35.93 | F17: 21 | G17: 23000 | H17: 23345.57
A18: All Districts | B18: 102.01 | C18: SELECTIVE CLEARING AND GRUBBING | D18: LS | E18: 6 | F18: 1 | G18: 45000 | H18: 40833.33
A19: All Districts | B19: 102.1 | C19: TREE TRIMMING | D19: FT | E19: 183502 | F19: 47 | G19: 15 | H19: 14.48
A20: All Districts | B20: 102.12 | C20: TREE TRIMMING | D20: EA | E20: 321 | F20: 7 | G20: 375 | H20: 437.5
A21: All Districts | B21: 102.2 | C21: TREE TRIMMING | D21: LS | E21: 17 | F21: 3 | G21: 12000 | H21: 10834.12
A22: All Districts | B22: 102.3 | C22: HERBICIDE TREATMENT FOR INVASIVE PLANTS | D22: HR | E22: 4649 | F22: 22 | G22: 435 | H22: 468.64
A23: All Districts | B23: 102.33 | C23: INVASIVE PLANT MANAGEMENT STRATEGY | D23: HR | E23: 1944 | F23: 21 | G23: 260 | H23: 248.87
A24: All Districts | B24: 102.511 | C24: TREE PROTECTION â€“ ARMORING & PRUNING | D24: EA | E24: 6043 | F24: 58 | G24: 350 | H24: 359.09
A25: All Districts | B25: 102.521 | C25: TREE AND PLANT PROTECTION FENCE | D25: FT | E25: 163669 | F25: 60 | G25: 9 | H25: 8.9
A26: All Districts | B26: 102.55 | C26: ARBORIST | D26: HR | E26: 3096 | F26: 15 | G26: 160 | H26: 170.54
A27: All Districts | B27: 103 | C27: TREE REMOVED - DIAMETER UNDER 24 INCHES | D27: EA | E27: 2241 | F27: 48 | G27: 1500 | H27: 1351.08
A28: All Districts | B28: 104 | C28: TREE REMOVED - DIAMETER 24 INCHES AND OVER | D28: EA | E28: 916 | F28: 33 | G28: 2500 | H28: 2512.23
A29: All Districts | B29: 105 | C29: STUMP REMOVED | D29: EA | E29: 456 | F29: 15 | G29: 500 | H29: 460.69
A30: All Districts | B30: 106.12 | C30: BRIDGE CURB REMOVED AND RESET | D30: FT | E30: 550 | F30: 2 | G30: 30 | H30: 27
A31: All Districts | B31: 106.15 | C31: BLEEDER (BRIDGE DECK) PVC | D31: EA | E31: 70 | F31: 4 | G31: 911.33 | H31: 867.56
A32: All Districts | B32: 106.87 | C32: JACKING SUPERSTRUCTURE | D32: LS | E32: 2 | F32: 1 | G32: 800400 | H32: 875200
A33: All Districts | B33: 106.88 | C33: JACKING AND SHORING | D33: EA | E33: 148 | F33: 4 | G33: 4750 | H33: 6813.46
A34: All Districts | B34: 106.9 | C34: JOINT FILLER COMPOUND | D34: FT | E34: 320 | F34: 1 | G34: 60 | H34: 60
A35: All Districts | B35: 107.02 | C35: LOW ALLOY STEEL PLATES | D35: LB | E35: 75250 | F35: 3 | G35: 2.5 | H35: 2.94
A36: All Districts | B36: 107.48 | C36: PREFORMED JOINT FILLER | D36: FT | E36: 3592 | F36: 2 | G36: 13 | H36: 12.05
A37: All Districts | B37: 107.85 | C37: SEALING RANDOM CRACKS IN CEMENT CONCRETE PAVEMENT | D37: FT | E37: 2400 | F37: 1 | G37: 25 | H37: 24.17
A38: All Districts | B38: 107.855 | C38: PRESSURE INJECTION OF CRACKS | D38: FT | E38: 7575 | F38: 5 | G38: 125 | H38: 141.45
A39: All Districts | B39: 107.96 | C39: STRUCTURAL STEEL REPAIRS | D39: LS | E39: 5 | F39: 1 | G39: 600000 | H39: 614200
A40: All Districts | B40: 107.97 | C40: STRUCTURAL STEEL REPAIRS | D40: LB | E40: 171635 | F40: 8 | G40: 30 | H40: 32.32
A41: All Districts | B41: 112.1 | C41: DEMOLITION OF BUILDING NO. _____ | D41: LS | E41: 10 | F41: 3 | G41: 52500 | H41: 46970.14
A42: All Districts | B42: 112.2 | C42: DEMOLITION OF BUILDING NO. _____ | D42: LS | E42: 3 | F42: 1 | G42: 30000 | H42: 28333.33
A43: All Districts | B43: 114.1 | C43: DEMOLITION OF SUPERSTRUCTURE OF BRIDGE NO. _____ | D43: LS | E43: 41 | F43: 14 | G43: 330000 | H43: 331661.54
A44: All Districts | B44: 114.2 | C44: DEMOLITION OF SUPERSTRUCTURE OF BRIDGE NO. _____ | D44: LS | E44: 8 | F44: 2 | G44: 485000 | H44: 481250
A45: All Districts | B45: 114.3 | C45: DEMOLITION OF SUPERSTRUCTURE OF BRIDGE NO. _____ | D45: LS | E45: 8 | F45: 2 | G45: 150000 | H45: 126875
A46: All Districts | B46: 115.1 | C46: DEMOLITION OF BRIDGE NO. _____ | D46: LS | E46: 11 | F46: 4 | G46: 300000 | H46: 250742.73
A47: All Districts | B47: 115.2 | C47: DEMOLITION OF BRIDGE NO. _____ | D47: LS | E47: 5 | F47: 2 | G47: 950000 | H47: 970000
A48: All Districts | B48: 115.3 | C48: DEMOLITION OF BRIDGE NO. _____ | D48: LS | E48: 6 | F48: 1 | G48: 500000 | H48: 495833.33
A49: All Districts | B49: 116 | C49: REMOVAL OF TEMPORARY STRUCTURE | D49: LS | E49: 5 | F49: 1 | G49: 100000 | H49: 105877.4
A50: All Districts | B50: 118 | C50: TEMPORARY CONSTRUCTION ACCESS ROAD | D50: LS | E50: 5 | F50: 2 | G50: 77500 | H50: 66000
A51: All Districts | B51: 119 | C51: RODENT CONTROL | D51: LS | E51: 6 | F51: 2 | G51: 4500 | H51: 4959
A52: All Districts | B52: 120 | C52: EARTH EXCAVATION | D52: CY | E52: 1211754 | F52: 60 | G52: 35 | H52: 35.2
A53: All Districts | B53: 120.1 | C53: UNCLASSIFIED EXCAVATION | D53: CY | E53: 1931285 | F53: 75 | G53: 48 | H53: 45.87
A54: All Districts | B54: 121 | C54: CLASS A ROCK EXCAVATION | D54: CY | E54: 15871 | F54: 44 | G54: 120 | H54: 131.41
A55: All Districts | B55: 123 | C55: MUCK EXCAVATION | D55: CY | E55: 10783 | F55: 9 | G55: 50 | H55: 50.63
A56: All Districts | B56: 125 | C56: TOPSOIL EXCAVATED AND STACKED | D56: CY | E56: 74705 | F56: 6 | G56: 25 | H56: 23.85
A57: All Districts | B57: 127 | C57: CONCRETE EXCAVATION | D57: CY | E57: 31513 | F57: 12 | G57: 150 | H57: 136.99
A58: All Districts | B58: 127.1 | C58: REINFORCED CONCRETE EXCAVATION | D58: CY | E58: 58519 | F58: 41 | G58: 1825 | H58: 1624.36
A59: All Districts | B59: 127.3 | C59: REINFORCED CONCRETE SURFACE EXCAVATION | D59: SY | E59: 675 | F59: 1 | G59: 35 | H59: 38.67
A60: All Districts | B60: 127.4 | C60: REINFORCED CONCRETE DECK EXCAVATION (FULL DEPTH) | D60: SY | E60: 16650 | F60: 20 | G60: 761 | H60: 719.6
A61: All Districts | B61: 127.41 | C61: REINFORCED CONCRETE DECK EXCAVATION (PARTIAL DEPTH) | D61: CY | E61: 4749 | F61: 20 | G61: 3000 | H61: 3079.91
A62: All Districts | B62: 129.2 | C62: OLD PAVEMENT EXCAVATION | D62: SY | E62: 82945 | F62: 6 | G62: 19.5 | H62: 19.86
A63: All Districts | B63: 129.3 | C63: OLD PAVEMENT EXCAVATION | D63: CY | E63: 17080 | F63: 1 | G63: 26.5 | H63: 26.13
A64: All Districts | B64: 129.5 | C64: TRACK EXCAVATION | D64: FT | E64: 97000 | F64: 3 | G64: 29.5 | H64: 32.25
A65: All Districts | B65: 129.6 | C65: BRIDGE PAVEMENT EXCAVATION | D65: SY | E65: 115044 | F65: 19 | G65: 25 | H65: 27.98
A66: All Districts | B66: 140 | C66: BRIDGE EXCAVATION | D66: CY | E66: 665899 | F66: 29 | G66: 44 | H66: 43.12
A67: All Districts | B67: 140.1 | C67: BRIDGE EXCAVATION WITHIN COFFERDAM | D67: CY | E67: 5700 | F67: 2 | G67: 94 | H67: 81.13
A68: All Districts | B68: 141 | C68: CLASS A TRENCH EXCAVATION | D68: CY | E68: 130906 | F68: 64 | G68: 40 | H68: 40
A69: All Districts | B69: 141.1 | C69: TEST PIT FOR EXPLORATION | D69: CY | E69: 40103 | F69: 93 | G69: 100 | H69: 99.57
A70: All Districts | B70: 142 | C70: CLASS B TRENCH EXCAVATION | D70: CY | E70: 112543.5 | F70: 69 | G70: 35 | H70: 34.33
A71: All Districts | B71: 143 | C71: CHANNEL EXCAVATION | D71: CY | E71: 13234 | F71: 6 | G71: 65 | H71: 60.94
A72: All Districts | B72: 144 | C72: CLASS B ROCK EXCAVATION | D72: CY | E72: 41127 | F72: 89 | G72: 150 | H72: 155.25
A73: All Districts | B73: 145 | C73: DRAINAGE STRUCTURE ABANDONED | D73: EA | E73: 428 | F73: 16 | G73: 600 | H73: 607.91
A74: All Districts | B74: 146 | C74: DRAINAGE STRUCTURE REMOVED | D74: EA | E74: 5532 | F74: 64 | G74: 750 | H74: 733.33
A75: All Districts | B75: 148 | C75: DREDGING AND DISPOSING OF MATERIAL | D75: CY | E75: 3240 | F75: 1 | G75: 285 | H75: 281.25
A76: All Districts | B76: 148.4 | C76: DREDGING, MOBILIZATION AND DEMOBILIZATION | D76: LS | E76: 3 | F76: 1 | G76: 75000.32 | H76: 66494.68
A77: All Districts | B77: 149.2 | C77: PUBLIC OUTREACH | D77: LS | E77: 7 | F77: 1 | G77: 250000 | H77: 280714.29
A78: All Districts | B78: 150 | C78: ORDINARY BORROW | D78: CY | E78: 170400 | F78: 44 | G78: 35 | H78: 32.67
A79: All Districts | B79: 150.1 | C79: SPECIAL BORROW | D79: CY | E79: 549930 | F79: 19 | G79: 40 | H79: 39.36
A80: All Districts | B80: 151 | C80: GRAVEL BORROW | D80: CY | E80: 1658173 | F80: 116 | G80: 45 | H80: 45.07
A81: All Districts | B81: 151.01 | C81: GRAVEL BORROW - TYPE C | D81: CY | E81: 47995 | F81: 30 | G81: 50 | H81: 47.02
A82: All Districts | B82: 151.1 | C82: GRAVEL BORROW FOR BRIDGE FOUNDATION | D82: CY | E82: 43614 | F82: 12 | G82: 58 | H82: 57.26
A83: All Districts | B83: 151.2 | C83: GRAVEL BORROW FOR BACKFILLING STRUCTURES AND PIPES | D83: CY | E83: 622692 | F83: 37 | G83: 50 | H83: 49.69
A84: All Districts | B84: 151.21 | C84: GRAVEL BORROW FOR RIPRAP | D84: CY | E84: 600 | F84: 1 | G84: 53.5 | H84: 49.8
A85: All Districts | B85: 151.3 | C85: GRAVEL BORROW FOR SLOPE TREATMENT | D85: CY | E85: 300 | F85: 1 | G85: 42.5 | H85: 40
A86: All Districts | B86: 152 | C86: PROCESSED GRAVEL | D86: CY | E86: 10340 | F86: 5 | G86: 46 | H86: 41.31
A87: All Districts | B87: 152.5 | C87: PEASTONE FOR DRIVEWAYS | D87: TON | E87: 300 | F87: 1 | G87: 55 | H87: 52.6
A88: All Districts | B88: 152.7 | C88: PEASTONE | D88: TON | E88: 156 | F88: 2 | G88: 75 | H88: 64.33
A89: All Districts | B89: 153 | C89: CONTROLLED DENSITY FILL - EXCAVATABLE | D89: CY | E89: 7491 | F89: 35 | G89: 165 | H89: 167.06
A90: All Districts | B90: 153.1 | C90: CONTROLLED DENSITY FILL - NON-EXCAVATABLE | D90: CY | E90: 2166 | F90: 17 | G90: 250 | H90: 234.23
A91: All Districts | B91: 154 | C91: SAND BORROW | D91: CY | E91: 2597 | F91: 8 | G91: 40 | H91: 51.77
A92: All Districts | B92: 156 | C92: CRUSHED STONE | D92: TON | E92: 131372.72 | F92: 92 | G92: 50 | H92: 49.3
A93: All Districts | B93: 156.1 | C93: CRUSHED STONE FOR BRIDGE FOUNDATIONS | D93: TON | E93: 37984 | F93: 11 | G93: 58 | H93: 56.1
A94: All Districts | B94: 156.2 | C94: CRUSHED STONE FOR SLOPE TREATMENT | D94: TON | E94: 2874 | F94: 2 | G94: 50 | H94: 45.54
A95: All Districts | B95: 156.5 | C95: CRUSHED STONE FOR FILTER BLANKET | D95: CY | E95: 1030 | F95: 2 | G95: 71 | H95: 69.08
A96: All Districts | B96: 156.8 | C96: CRUSHED STONE FOR SUB-BASE | D96: CY | E96: 1125 | F96: 1 | G96: 45 | H96: 47
A97: All Districts | B97: 157.1 | C97: GABIONS | D97: CY | E97: 870 | F97: 2 | G97: 400 | H97: 465.62
A98: All Districts | B98: 157.2 | C98: RENO MATTRESS | D98: CY | E98: 180 | F98: 1 | G98: 575 | H98: 588.33
A99: All Districts | B99: 170 | C99: FINE GRADING AND COMPACTING - SUBGRADE AREA | D99: SY | E99: 3840298 | F99: 100 | G99: 6.15 | H99: 5.8
A100: All Districts | B100: 180.01 | C100: ENVIRONMENTAL HEALTH AND SAFETY PROGRAM | D100: LS | E100: 179 | F100: 45 | G100: 7500 | H100: 6938.76
A101: All Districts | B101: 180.02 | C101: PERSONAL PROTECTION LEVEL C UPGRADE | D101: HR | E101: 19124 | F101: 44 | G101: 10 | H101: 8.79
A102: All Districts | B102: 180.03 | C102: LICENSED SITE PROFESSIONAL SERVICES | D102: HR | E102: 41233 | F102: 44 | G102: 120 | H102: 124.27
A103: All Districts | B103: 181.11 | C103: DISPOSAL OF UNREGULATED SOIL | D103: TON | E103: 129094 | F103: 41 | G103: 46 | H103: 45.45
A104: All Districts | B104: 181.12 | C104: DISPOSAL OF REGULATED SOIL - IN-STATE FACILITY | D104: TON | E104: 162968 | F104: 41 | G104: 73 | H104: 72.77
A105: All Districts | B105: 181.13 | C105: DISPOSAL OF REGULATED SOIL - OUT-OF-STATE FACILITY | D105: TON | E105: 138998 | F105: 40 | G105: 130 | H105: 134.16
A106: All Districts | B106: 181.14 | C106: DISPOSAL OF HAZARDOUS WASTE | D106: TON | E106: 17280 | F106: 38 | G106: 412.69 | H106: 436.02
A107: All Districts | B107: 182.1 | C107: INSPECTION AND TESTING FOR ASBESTOS | D107: LS | E107: 108 | F107: 28 | G107: 2500 | H107: 2345.35
A108: All Districts | B108: 182.2 | C108: REMOVAL OF ASBESTOS | D108: FT | E108: 20230 | F108: 27 | G108: 95 | H108: 91.96
A109: All Districts | B109: 182.3 | C109: ASBESTOS ABATEMENT FOR BUILDING DEMOLITION | D109: LS | E109: 5 | F109: 1 | G109: 14375 | H109: 13950
A110: All Districts | B110: 183.1 | C110: TREATMENT OF CONTAMINATED GROUNDWATER | D110: GAL | E110: 404820 | F110: 15 | G110: 8 | H110: 6.31
A111: All Districts | B111: 183.2 | C111: DISPOSAL OF GRANULAR ACTIVATED CARBON | D111: LB | E111: 46150 | F111: 17 | G111: 8 | H111: 7.48
A112: All Districts | B112: 184.1 | C112: DISPOSAL OF TREATED WOOD PRODUCTS | D112: TON | E112: 6625.1 | F112: 50 | G112: 325 | H112: 322
A113: All Districts | B113: 188.2 | C113: DISPOSAL OF PCB BALLASTS | D113: LS | E113: 2 | F113: 1 | G113: 2250 | H113: 2250
A114: All Districts | B114: 188.3 | C114: DISPOSAL OF MERCURY CONTAINING LAMPS | D114: EA | E114: 595 | F114: 3 | G114: 25 | H114: 30.43
A115: All Districts | B115: 188.4 | C115: DISPOSAL OF MERCURY CONTAINING DEVICES | D115: EA | E115: 10 | F115: 1 | G115: 9500 | H115: 9500
A116: All Districts | B116: 191 | C116: DRIVE SAMPLE BORING | D116: FT | E116: 5726 | F116: 7 | G116: 80 | H116: 83.41
A117: All Districts | B117: 191.1 | C117: HOLLOW STEM AUGER BORINGS | D117: FT | E117: 1920.5 | F117: 6 | G117: 109.5 | H117: 95.87
A118: All Districts | B118: 191.11 | C118: CORE BORING | D118: FT | E118: 404 | F118: 5 | G118: 40 | H118: 56.13
A119: All Districts | B119: 192.1 | C119: GROUND WATER OBSERVATION WELLPOINT TYPE II | D119: FT | E119: 1 | F119: 1 | G119: 1060.78 | H119: 1060.78
A120: All Districts | B120: 193 | C120: MOBILIZATION AND DISMANTLING OF BORING EQUIPMENT | D120: LS | E120: 7 | F120: 2 | G120: 2800 | H120: 2442.86
A121: All Districts | B121: 201 | C121: CATCH BASIN | D121: EA | E121: 12729.87 | F121: 68 | G121: 4500 | H121: 4430.75
A122: All Districts | B122: 201.3 | C122: SPECIAL CATCH BASIN | D122: EA | E122: 1128 | F122: 9 | G122: 5750 | H122: 5720
A123: All Districts | B123: 201.5 | C123: CATCH BASIN - MUNICIPAL STANDARD | D123: EA | E123: 24 | F123: 1 | G123: 6975 | H123: 6616.67
A124: All Districts | B124: 202 | C124: MANHOLE | D124: EA | E124: 7190.78 | F124: 67 | G124: 5000 | H124: 4817.26
A125: All Districts | B125: 202.2 | C125: MANHOLE (9 TO 14 FOOT DEPTH) | D125: EA | E125: 250.32 | F125: 9 | G125: 6500 | H125: 6252.46
A126: All Districts | B126: 203 | C126: SPECIAL MANHOLE | D126: EA | E126: 181 | F126: 9 | G126: 6500 | H126: 8479.9
A127: All Districts | B127: 204 | C127: GUTTER INLET | D127: EA | E127: 670 | F127: 29 | G127: 2500 | H127: 2351.53
A128: All Districts | B128: 204.11 | C128: GUTTER INLET - SPECIAL | D128: EA | E128: 303 | F128: 7 | G128: 2500 | H128: 2582.81
A129: All Districts | B129: 205 | C129: LEACHING BASIN | D129: EA | E129: 149 | F129: 12 | G129: 6500 | H129: 6448.94
A130: All Districts | B130: 206 | C130: DROP INLET, TYPE A | D130: EA | E130: 30 | F130: 2 | G130: 4000 | H130: 4007.98
A131: All Districts | B131: 206.1 | C131: DROP INLET, TYPE AF | D131: EA | E131: 48 | F131: 2 | G131: 4232.33 | H131: 4818.29
A132: All Districts | B132: 207 | C132: DROP INLET, TYPE B | D132: EA | E132: 6 | F132: 1 | G132: 5000 | H132: 4983.33
A133: All Districts | B133: 207.1 | C133: DROP INLET, TYPE BF | D133: EA | E133: 44 | F133: 3 | G133: 5000 | H133: 5299.46
A134: All Districts | B134: 208 | C134: DROP INLET, TYPE C | D134: EA | E134: 5 | F134: 1 | G134: 3100 | H134: 3240
A135: All Districts | B135: 209 | C135: DROP INLET, TYPE D | D135: EA | E135: 15 | F135: 1 | G135: 3800 | H135: 4060
A136: All Districts | B136: 209.1 | C136: DROP INLET, TYPE DF | D136: EA | E136: 103 | F136: 6 | G136: 3050 | H136: 3115.03
A137: All Districts | B137: 209.2 | C137: SPECIAL DROP INLET | D137: EA | E137: 36 | F137: 2 | G137: 5000 | H137: 4850
A138: All Districts | B138: 209.3 | C138: DROP INLET CHANGE IN TYPE | D138: EA | E138: 245 | F138: 3 | G138: 1800 | H138: 1766.36
A139: All Districts | B139: 210 | C139: SANITARY SEWER MANHOLE | D139: EA | E139: 75 | F139: 6 | G139: 6525 | H139: 6446.1
A140: All Districts | B140: 210.02 | C140: SANITARY SEWER MANHOLE REMOVED | D140: EA | E140: 60 | F140: 4 | G140: 1500 | H140: 1301.5
A141: All Districts | B141: 210.2 | C141: SANITARY SEWER MANHOLE (9 TO 14 FOOT DEPTH) | D141: EA | E141: 28 | F141: 1 | G141: 10000 | H141: 10442.86
A142: All Districts | B142: 220 | C142: DRAINAGE STRUCTURE ADJUSTED | D142: EA | E142: 37428 | F142: 94 | G142: 433.53 | H142: 432.01
A143: All Districts | B143: 220.2 | C143: DRAINAGE STRUCTURE REBUILT | D143: FT | E143: 21998.5 | F143: 74 | G143: 475 | H143: 461.33
A144: All Districts | B144: 220.3 | C144: DRAINAGE STRUCTURE CHANGE IN TYPE | D144: EA | E144: 1016 | F144: 46 | G144: 1050 | H144: 1090.94
A145: All Districts | B145: 220.5 | C145: DRAINAGE STRUCTURE REMODELED | D145: EA | E145: 1723 | F145: 47 | G145: 850 | H145: 794.87
A146: All Districts | B146: 220.6 | C146: SANITARY STRUCTURE REBUILT | D146: FT | E146: 1452 | F146: 23 | G146: 450 | H146: 460.07
A147: All Districts | B147: 220.7 | C147: SANITARY STRUCTURE ADJUSTED | D147: EA | E147: 5910 | F147: 68 | G147: 446.68 | H147: 438.51
A148: All Districts | B148: 220.8 | C148: SANITARY STRUCTURE REMODELED | D148: EA | E148: 449 | F148: 17 | G148: 975 | H148: 893.02
A149: All Districts | B149: 220.9 | C149: SANITARY STRUCTURE ABANDONED | D149: EA | E149: 33 | F149: 2 | G149: 1100 | H149: 1186
A150: All Districts | B150: 221 | C150: FRAME AND COVER | D150: EA | E150: 6367 | F150: 54 | G150: 885 | H150: 864.4
A151: All Districts | B151: 221.1 | C151: FRAME AND COVER - SECURED | D151: EA | E151: 5013 | F151: 46 | G151: 800 | H151: 766.62
A152: All Districts | B152: 222 | C152: FRAME AND GRATE - MASSDOT BAR TYPE | D152: EA | E152: 10872 | F152: 34 | G152: 841.93 | H152: 803.4
A153: All Districts | B153: 222.1 | C153: FRAME AND GRATE - MASSDOT CASCADE TYPE | D153: EA | E153: 10864 | F153: 68 | G153: 975 | H153: 966.68
A154: All Districts | B154: 222.2 | C154: FRAME AND GRATE - MASSDOT DROP INLET | D154: EA | E154: 367 | F154: 9 | G154: 850 | H154: 856.95
A155: All Districts | B155: 222.3 | C155: FRAME AND GRATE (OR COVER) MUNICIPAL STANDARD | D155: EA | E155: 9670 | F155: 25 | G155: 925 | H155: 934.07
A156: All Districts | B156: 222.4 | C156: LARGE HOOK LOCK BAR GRATE â€“ FURNISHED AND INSTALLED | D156: EA | E156: 1960 | F156: 11 | G156: 1550 | H156: 1727.39
A157: All Districts | B157: 223.1 | C157: FRAME AND GRATE (OR COVER) REMOVED AND STACKED | D157: EA | E157: 1143 | F157: 21 | G157: 100 | H157: 96.71
A158: All Districts | B158: 223.2 | C158: FRAME AND GRATE (OR COVER) REMOVED AND DISCARDED | D158: EA | E158: 11823 | F158: 68 | G158: 80 | H158: 71.75
A159: All Districts | B159: 224.08 | C159: 8 INCH HOOD | D159: EA | E159: 3 | F159: 1 | G159: 440 | H159: 410
A160: All Districts | B160: 224.1 | C160: 10 INCH HOOD | D160: EA | E160: 228 | F160: 4 | G160: 450 | H160: 452.49
A161: All Districts | B161: 224.12 | C161: 12 INCH HOOD | D161: EA | E161: 4259 | F161: 19 | G161: 455 | H161: 460.18
A162: All Districts | B162: 224.15 | C162: 15 INCH HOOD | D162: EA | E162: 30 | F162: 1 | G162: 687.5 | H162: 729.17
A163: All Districts | B163: 224.18 | C163: 18 INCH HOOD | D163: EA | E163: 19 | F163: 2 | G163: 700 | H163: 787.38
A164: All Districts | B164: 225.52 | C164: TRAP AND HOOD MUNICIPAL STANDARD | D164: EA | E164: 180 | F164: 1 | G164: 575 | H164: 587.75
A165: All Districts | B165: 227.1 | C165: TIDE GATE | D165: EA | E165: 8 | F165: 1 | G165: 5720.16 | H165: 5560.08
A166: All Districts | B166: 227.3 | C166: REMOVAL OF DRAINAGE STRUCTURE SEDIMENT | D166: CY | E166: 40900 | F166: 99 | G166: 250 | H166: 249.17
A167: All Districts | B167: 227.31 | C167: REMOVAL OF DRAINAGE PIPE SEDIMENT | D167: FT | E167: 989724 | F167: 89 | G167: 10 | H167: 8.5
A168: All Districts | B168: 227.4 | C168: MASONRY PLUG | D168: SF | E168: 2908 | F168: 36 | G168: 120 | H168: 112.53
A169: All Districts | B169: 230.112 | C169: 12 INCH CORRUGATED METAL PIPE 16 GAGE | D169: FT | E169: 3735 | F169: 2 | G169: 80 | H169: 75.23
A170: All Districts | B170: 230.115 | C170: 15 INCH CORRUGATED METAL PIPE 16 GAGE | D170: FT | E170: 335 | F170: 2 | G170: 131.2 | H170: 127.65
A171: All Districts | B171: 230.118 | C171: 18 INCH CORRUGATED METAL PIPE 16 GAGE | D171: FT | E171: 210 | F171: 1 | G171: 142.5 | H171: 136.21
A172: All Districts | B172: 230.212 | C172: 12 INCH CORRUGATED METAL PIPE 14 GAGE | D172: FT | E172: 60 | F172: 1 | G172: 130 | H172: 130
A173: All Districts | B173: 230.712 | C173: 12 INCH CORRUGATED METAL PIPE END SECTION | D173: EA | E173: 45 | F173: 2 | G173: 1040 | H173: 968.83
A174: All Districts | B174: 230.715 | C174: 15 INCH CORRUGATED METAL PIPE END SECTION | D174: EA | E174: 6 | F174: 1 | G174: 807.5 | H174: 813.58
A175: All Districts | B175: 230.718 | C175: 18 INCH CORRUGATED METAL PIPE END SECTION | D175: EA | E175: 6 | F175: 1 | G175: 835 | H175: 865.16
A176: All Districts | B176: 232.4 | C176: 43 X 27 INCH ACCM PIPE-ARCH 12 GAGE | D176: FT | E176: 350 | F176: 1 | G176: 425 | H176: 359.29
A177: All Districts | B177: 232.5 | C177: 50 X 31 INCH ACCM PIPE-ARCH 12 GAGE | D177: FT | E177: 246 | F177: 1 | G177: 392.5 | H177: 372.5
A178: All Districts | B178: 234.12 | C178: 12 INCH DRAINAGE PIPE - OPTION | D178: FT | E178: 105550 | F178: 34 | G178: 110 | H178: 114.68
A179: All Districts | B179: 234.15 | C179: 15 INCH DRAINAGE PIPE - OPTION | D179: FT | E179: 18925 | F179: 13 | G179: 110 | H179: 101.17
A180: All Districts | B180: 234.18 | C180: 18 INCH DRAINAGE PIPE - OPTION | D180: FT | E180: 29630 | F180: 14 | G180: 119.18 | H180: 114.95
A181: All Districts | B181: 234.24 | C181: 24 INCH DRAINAGE PIPE - OPTION | D181: FT | E181: 2894 | F181: 10 | G181: 147.5 | H181: 140.45
A182: All Districts | B182: 234.3 | C182: 30 INCH DRAINAGE PIPE - OPTION | D182: FT | E182: 460 | F182: 1 | G182: 156.5 | H182: 153.25
A183: All Districts | B183: 234.36 | C183: 36 INCH DRAINAGE PIPE - OPTION | D183: FT | E183: 800 | F183: 2 | G183: 180 | H183: 162.5
A184: All Districts | B184: 235.12 | C184: 12 INCH DRAINAGE PIPE FLARED END - OPTION | D184: EA | E184: 178 | F184: 14 | G184: 1000 | H184: 983.61
A185: All Districts | B185: 235.15 | C185: 15 INCH DRAINAGE PIPE FLARED END - OPTION | D185: EA | E185: 46 | F185: 4 | G185: 1250 | H185: 1217.51
A186: All Districts | B186: 235.18 | C186: 18 INCH DRAINAGE PIPE FLARED END - OPTION | D186: EA | E186: 51 | F186: 8 | G186: 1250 | H186: 1170.11
A187: All Districts | B187: 235.24 | C187: 24 INCH DRAINAGE PIPE FLARED END - OPTION | D187: EA | E187: 32 | F187: 5 | G187: 1400 | H187: 1300.23
A188: All Districts | B188: 235.3 | C188: 30 INCH DRAINAGE PIPE FLARED END - OPTION | D188: EA | E188: 12 | F188: 1 | G188: 1350 | H188: 1166.67
A189: All Districts | B189: 235.36 | C189: 36 INCH DRAINAGE PIPE FLARED END - OPTION | D189: EA | E189: 9 | F189: 1 | G189: 1500 | H189: 1333.33
A190: All Districts | B190: 238.1 | C190: 10 INCH DUCTILE IRON PIPE | D190: FT | E190: 29780 | F190: 28 | G190: 148.5 | H190: 144.2
A191: All Districts | B191: 238.12 | C191: 12 INCH DUCTILE IRON PIPE | D191: FT | E191: 32243 | F191: 21 | G191: 165 | H191: 162.59
A192: All Districts | B192: 238.16 | C192: 16 INCH DUCTILE IRON PIPE | D192: FT | E192: 947 | F192: 3 | G192: 250 | H192: 248.12
A193: All Districts | B193: 238.24 | C193: 24 INCH DUCTILE IRON PIPE | D193: FT | E193: 1200 | F193: 2 | G193: 250 | H193: 250.88
A194: All Districts | B194: 241.12 | C194: 12 INCH REINFORCED CONCRETE PIPE | D194: FT | E194: 271106 | F194: 39 | G194: 105 | H194: 104.73
A195: All Districts | B195: 241.15 | C195: 15 INCH REINFORCED CONCRETE PIPE | D195: FT | E195: 86750 | F195: 22 | G195: 110 | H195: 107.03
A196: All Districts | B196: 241.18 | C196: 18 INCH REINFORCED CONCRETE PIPE | D196: FT | E196: 79215 | F196: 21 | G196: 129 | H196: 124.81
A197: All Districts | B197: 241.24 | C197: 24 INCH REINFORCED CONCRETE PIPE | D197: FT | E197: 38629 | F197: 18 | G197: 155 | H197: 149.48
A198: All Districts | B198: 241.3 | C198: 30 INCH REINFORCED CONCRETE PIPE | D198: FT | E198: 8850 | F198: 2 | G198: 160 | H198: 169.86
A199: All Districts | B199: 241.36 | C199: 36 INCH REINFORCED CONCRETE PIPE | D199: FT | E199: 555 | F199: 2 | G199: 220 | H199: 207.9
A200: All Districts | B200: 241.42 | C200: 42 INCH REINFORCED CONCRETE PIPE | D200: FT | E200: 1006 | F200: 2 | G200: 225 | H200: 262.2
... 3865 more rows

Sheet DESIGN (hidden)
C2: CALC'D BY: | D2: KA | E2: DATE: | F2: 2017-11-02 | H2: CITY: | I2: =AREA!I2 -> 0
C3: CHK'D BY: | D3: KR | E3: DATE: | F3: 2017-11-15 | H3: PROJECT: | I3: =AREA!I3 -> 0
C8: Total Construction Cost: | F8: =SUM(SUMMARY!$I$13+SUMMARY!$I$15) -> 0
C9: (Path + Structures)
C10: Base design fee based on construction cost
G11: %-age | I11: Design Fee
D12: 0 | E12: to | F12: 500000 | G12: 0.2 | H12: =IF(AND(D12<=$F$8,F12>$F$8),"X","") -> X | I12: =IF(H12="","",$F$8*G12) -> 0
D13: =F12 -> 500000 | E13: to | F13: 1000000 | G13: 0.18 | H13: =IF(AND(D13<=$F$8,F13>$F$8),"X","") ->  | I13: =IF(H13="","",$F$8*G13) -> 
D14: =F13 -> 1000000 | E14: to | F14: 1500000 | G14: 0.16
D15: 1500000 | E15: to | F15: 2000000 | G15: 0.14
D16: 2000000 | E16: to | F16: 2500000 | G16: 0.13
D17: 2500000 | E17: and | F17: over | G17: 0.12
C19: Construction Costs for Structures | E19: =SUMMARY!$I$15 -> 0
M20: DO NOT MOVE CELL
C21: Structural Multiplier | G21: %-age | I21: Structural Design | M21: =ROUND(DESIGN!$I$43/SUMMARY!$I$26*100,0) -> 
D22: 0 | E22: to | F22: 250000 | G22: 0.02 | H22: =IF(AND(D22<=$E$19,F22>E$19),"X","") -> X | I22: =IF(H22="","",$F$8*G22) -> 0
D23: =F22 -> 250000 | E23: to | F23: 500000 | G23: 0.025 | H23: =IF(AND(D23<=$E$19,F23>E$19),"X","") ->  | I23: =IF(H23="","",$F$8*G23) -> 
D24: =F23 -> 500000 | E24: to | F24: 750000 | G24: 0.03
D25: 750000 | E25: to | F25: 1000000 | G25: 0.04
D26: 1000000 | E26: to | F26: 1500000 | G26: 0.05
D27: 1500000 | E27: and | F27: over | G27: 0.06 | I27: =IF(H27="","",$F$8*G27) -> 
D31: Total Design Fee
D32: =SUM(I12:I17) -> 0 | E32: + | F32: =SUM(I22:I27) -> 0 | H32: = | J32: =D32+F32 -> 0
F43: Total Cost for Design | I43: =SUM(J9:J38) -> 0 | J43: DOLLARS

Sheet SURVEY (hidden)
C2: CALC'D BY: | D2: KA | E2: DATE: | F2: 2017-10-25 | H2: CITY: | I2: =AREA!I2 -> 0
C3: CHK'D BY: | D3: KR | E3: DATE: | F3: 2017-11-15 | H3: PROJECT: | I3: =AREA!I3 -> 0
C7: Existing Conditions | E7: ='USER INTERFACE'!G18 -> 0 | F7: ='USER INTERFACE'!H18 -> 0 | G7: ='USER INTERFACE'!I18 -> 0 | H7: ='USER INTERFACE'!J18 -> 0
C8: Length | E8: ='USER INTERFACE'!G17 -> 0 | F8: ='USER INTERFACE'!H17 -> 0 | G8: ='USER INTERFACE'!I17 -> 0 | H8: ='USER INTERFACE'!J17 -> 0
D11: SURVEY | G11: =AREA!$H$31/5280 -> 0 | H11: MI | I11: =H22 -> 0 | J11: =G11*I11 -> 0
D13: Multiplier based on survey conditions
D15: Clear/flat | G15: 0.9 | H15: =SUMIF($E$7:$H$7,D15,$E$8:$H$8) -> 0
D16: Waterfront | G16: 1 | H16: =SUMIF($E$7:$H$7,D16,$E$8:$H$8) -> 0
D17: Roadway | G17: 1 | H17: 0
D18: Wooded/hilly | G18: 1.15 | H18: 0
D19: Utility Corridor | G19: 1 | H19: =SUMIF($E$7:$H$7,D19,$E$8:$H$8) -> 0
D21: Base Cost:
D22: 75000 | E22: /mile * | F22: =IF(AREA!H31>0,(G15*H15+G16*H16+G17*H17+G18*H18+G19*H19)/SUM(H15:H19),0) -> 0 | G22: = | H22: =D22*F22 -> 0 | I22: /mile
D39: = Price not included in MassDOT Database.
H43: Total Cost for Survey | I43: =SUM(J11:J36) -> 0 | J43: DOLLARS

Sheet TTCP (hidden)
C2: CALC'D BY: | D2: KA | E2: DATE: | F2: 2017-10-25 | H2: CITY: | I2: =AREA!I2 -> 0
C3: CHK'D BY: | D3: KR | E3: DATE: | F3: 2017-11-15 | H3: PROJECT: | I3: =AREA!I3 -> 0
C7: Proposed Path | E7: ='USER INTERFACE'!G19 -> 0 | F7: ='USER INTERFACE'!H19 -> 0 | G7: ='USER INTERFACE'!I19 -> 0 | H7: ='USER INTERFACE'!J19 -> 0
C8: Length | E8: ='USER INTERFACE'!G17 -> 0 | F8: ='USER INTERFACE'!H17 -> 0 | G8: ='USER INTERFACE'!I17 -> 0 | H8: ='USER INTERFACE'!J17 -> 0
D13: Percentage Variation based on Proposed Type
D15: Rail Trail | G15: -0.03 | H15: =SUMIF($E$7:$H$7,D15&"*",$E$8:$H$8) -> 0
D16: Roadway Sidepath | G16: 0.02 | H16: =SUMIF($E$7:$H$7,D16,$E$8:$H$8) -> 0
D17: Other SUP | G17: 0.01 | H17: 0
D20: Base Percentage: | M20: DO NOT MOVE CELL
D21: 0.03 | E21: =IF(F21>=0,"+","-") ->  | F21: =(G15*H15+G16*H16+G17*H17)/SUM(H15:H17) ->  | G21: = | H21: =D21+F21 ->  | M21: =H21*100 -> 
C23: Total Construction Cost: | F23: =SUM(SUMMARY!I13) -> 0 | G23: =H21 ->  | H23: = | I23: =F23*G23 -> 
C24: (Only path)
D39: = Price not included in MassDOT Database.
H43: Total Cost for TTCP | I43: =I23 ->  | J43: DOLLARS

Sheet ASPHALT (hidden)
C2: CALC'D BY: | D2: KA | E2: DATE: | F2: 2021-06-02 | H2: CITY: | I2: =AREA!I2 -> 0
C3: CHK'D BY: | D3: KR | E3: DATE: | F3: 2017-11-15 | H3: PROJECT: | I3: =AREA!I3 -> 0
G7: Shoulder Area | H7: =SUMIF('USER INTERFACE'!$G$21:$J$21,'USER INTERFACE'!$Q10,'USER INTERFACE'!$G$17:$J$17)*4 -> 0 | I7: SF
C9: 120.1 | D9: UNCLASSIFIED EXCAVATION | G9: =SUM(G12:G13) -> 0 | H9: CY | I9: =IF(VLOOKUP(C9,PRICES!$B$2:$J$9998,9,FALSE)<>0,VLOOKUP(C9,PRICES!$B$2:$J$9998,9,FALSE),VLOOKUP(C9,PRICES!$B$2:$H$9998,7,FALSE)) -> 45.87 | J9: =G9*I9 -> 0
D11: Area (SF) | E11: Depth (ft.)
C12: Path | D12: =AREA!$H$16 -> 0 | E12: =1 -> 1 | F12: = | G12: =(D12*E12)/27 -> 0 | H12: CY
C13: Shoulder | D13: =$H$7 -> 0 | E13: 1 | F13: = | G13: =(D13*E13)/27 -> 0 | H13: CY
C15: 151 | D15: GRAVEL BORROW | G15: =G18+G19 -> 0 | H15: CY | I15: =IF(VLOOKUP(C15,PRICES!$B$2:$J$9998,9,FALSE)<>0,VLOOKUP(C15,PRICES!$B$2:$J$9998,9,FALSE),VLOOKUP(C15,PRICES!$B$2:$H$9998,7,FALSE)) -> 45.07 | J15: =G15*I15 -> 0
D17: Area (SF) | E17: Depth (ft.)
C18: Path | D18: =$D$12 -> 0 | E18: =8/12 -> 0.6666666667 | F18: = | G18: =(D18*E18)/27 -> 0 | H18: CY
C19: Shoulder | D19: =$D$13 -> 0 | E19: =8/12 -> 0.6666666667 | F19: = | G19: =(D19*E19)/27 -> 0 | H19: CY
C21: 170 | D21: FINE GRADING AND COMPACTING | G21: =G22 -> 0 | H21: SY | I21: =IF(VLOOKUP(C21,PRICES!$B$2:$J$9998,9,FALSE)<>0,VLOOKUP(C21,PRICES!$B$2:$J$9998,9,FALSE),VLOOKUP(C21,PRICES!$B$2:$H$9998,7,FALSE)) -> 5.8 | J21: =G21*I21 -> 0
D22: =$H$7/9 -> 0 | E22: =AREA!$I$16 -> 0 | F22: = | G22: =D22+E22 -> 0 | H22: SY
C24: 450.23 | D24: SUPERPAVE SURFACE COURSE - 12.5 (SSC - 12.5) | G24: =ROUNDUP(G27,0) -> 0 | H24: TON | I24: =IF(VLOOKUP(C24,PRICES!$B$2:$J$9998,9,FALSE)<>0,VLOOKUP(C24,PRICES!$B$2:$J$9998,9,FALSE),VLOOKUP(C24,PRICES!$B$2:$H$9998,7,FALSE)) -> 118.58 | J24: =G24*I24 -> 0
C26: Area (SY) | D26: Depth (in.) | E26: Ton/sy/in | G26: Tons
C27: =$D$12/9+$H$7/9 -> 0 | D27: 2 | E27: 0.056 | G27: =C27*D27*E27 -> 0
C29: 450.31 | D29: SUPERPAVE INTERMEDIATE COURSE - 12.5 (SIC - 12.5) | G29: =ROUNDUP(G32,0) -> 0 | H29: TON | I29: =IF(VLOOKUP(C29,PRICES!$B$2:$J$9998,9,FALSE)<>0,VLOOKUP(C29,PRICES!$B$2:$J$9998,9,FALSE),VLOOKUP(C29,PRICES!$B$2:$H$9998,7,FALSE)) -> 138.46 | J29: =G29*I29 -> 0
C31: Area (SY) | D31: Depth (in.) | E31: Ton/sy/in | G31: Tons
C32: =$D$12/9+$H$7/9 -> 0 | D32: 2 | E32: 0.056 | G32: =C32*D32*E32 -> 0
K34: =G34*J34 -> 0
F43: Total Cost for Asphalt | I43: =SUM(J8:J41) -> 0 | J43: DOLLARS

Sheet POROUS ASPHALT (hidden)
C2: CALC'D BY: | D2: KA | E2: DATE: | F2: 2017-10-31 | H2: CITY: | I2: =AREA!I2 -> 0
C3: CHK'D BY: | D3: KR | E3: DATE: | F3: 2017-11-15 | H3: PROJECT: | I3: =AREA!I3 -> 0
G7: Shoulder Area | H7: =SUMIF('USER INTERFACE'!$G$21:$J$21,'USER INTERFACE'!$Q11,'USER INTERFACE'!$G$17:$J$17)*4 -> 0 | I7: SF
C9: 120.1 | D9: UNCLASSIFIED EXCAVATION | G9: =SUM(G11:G12) -> 0 | H9: CY | I9: =IF(VLOOKUP(C9,PRICES!$B$2:$J$9998,9,FALSE)<>0,VLOOKUP(C9,PRICES!$B$2:$J$9998,9,FALSE),VLOOKUP(C9,PRICES!$B$2:$H$9998,7,FALSE)) -> 45.87 | J9: =G9*I9 -> 0
D10: Area (SF) | E10: Depth (ft.)
C11: Path | D11: =AREA!$H$17 -> 0 | E11: =1 -> 1 | F11: = | G11: =(D11*E11)/27 -> 0 | H11: CY
C12: Shoulder | D12: =$H$7 -> 0 | E12: =1 -> 1 | F12: = | G12: =(D12*E12)/27 -> 0 | H12: CY
C14: 156.01 | D14: #67 CRUSHED STONE FILTER BASE COURSE | G14: =SUM(G16:G17) -> 0 | H14: CY | I14: 50 | J14: =G14*I14 -> 0
D15: Area (SF) | E15: Depth (ft.)
C16: Path | D16: =$D$11 -> 0 | E16: =2/12 -> 0.1666666667 | F16: = | G16: =(D16*E16)/27 -> 0 | H16: CY
C17: Shoulder | D17: =$H$7 -> 0 | E17: =2/12 -> 0.1666666667 | F17: = | G17: =(D17*E17)/27 -> 0 | H17: CY
C19: 156.02 | D19: #57 CRUSHED STONE RESERVOIR SUB-BASE COURSE | G19: =SUM(G21:G22) -> 0 | H19: CY | I19: 55 | J19: =G19*I19 -> 0
D20: Area (SF) | E20: Depth (ft.)
C21: Path | D21: =$D$11 -> 0 | E21: 1 | F21: = | G21: =(D21*E21)/27 -> 0 | H21: CY
C22: Shoulder | D22: =$H$7 -> 0 | E22: 1 | F22: = | G22: =(D22*E22)/27 -> 0 | H22: CY
C24: 450.14 | D24: WMA POROUS PAVEMENT SURFACE COURSE | G24: =ROUNDUP(G26,0) -> 0 | H24: TON | I24: 140 | J24: =G24*I24 -> 0
C25: Area (SY) | D25: Depth (in.) | E25: Ton/sy/in | G25: Tons
C26: =$D$11/9+$H$7/9 -> 0 | D26: 2 | E26: 0.056 | G26: =C26*D26*E26 -> 0
C28: 450.16 | D28: WMA POROUS PAVEMENT BASE COURSE | G28: =ROUNDUP(G30,0) -> 0 | H28: TON | I28: 140 | J28: =G28*I28 -> 0
C29: Area (SY) | D29: Depth (in.) | E29: Ton/sy/in | G29: Tons
C30: =$D$11/9+$H$7/9 -> 0 | D30: 2 | E30: 0.056 | G30: =C30*D30*E30 -> 0
C32: 698.1 | D32: GEOTEXTILE FABRIC FOR STABILIZATION | G32: =SUM(H36:H37) -> 0 | H32: SY | I32: =IF(VLOOKUP(C32,PRICES!$B$2:$J$9998,9,FALSE)<>0,VLOOKUP(C32,PRICES!$B$2:$J$9998,9,FALSE),VLOOKUP(C32,PRICES!$B$2:$H$9998,7,FALSE)) -> 6.17 | J32: =G32*I32 -> 0
D34: Total Length | E34: Depth of Fabric (ft) | F34: Total Area of Side (SF)
D35: =AREA!$H$38 -> 0 | E35: =7/6 -> 1.166666667 | F35: =D35*E35 -> 0
C36: Fabric on sides of the trenches | H36: =F35/9 -> 0 | I36: SY
C37: Fabric on bottom of trenches (total area of Porous Pavement) | H37: =$D$11/9+$H$7/9 -> 0 | I37: SY
D42: = Price not included in MassDOT Database.
H43: Total Cost for Porous Asphalt | I43: =SUM(J8:J41) -> 0 | J43: DOLLARS

Sheet STONE DUST (hidden)
C2: CALC'D BY: | D2: KA | E2: DATE: | F2: 2017-10-31 | H2: CITY: | I2: =AREA!I2 -> 0
C3: CHK'D BY: | D3: KR | E3: DATE: | F3: 2017-11-15 | H3: PROJECT: | I3: =AREA!I3 -> 0
G7: Shoulder Area | H7: =SUMIF('USER INTERFACE'!$G$21:$J$21,'USER INTERFACE'!$Q12,'USER INTERFACE'!$G$17:$J$17)*4 -> 0 | I7: SF
C8: 704.12 | D8: STONE DUST PAVEMENT | G8: =G17 -> 0 | H8: TONS | I8: 30 | J8: =G8*I8 -> 0
C10: SHOULDER
E11: Area | F11: = | G11: =$H$7/9 -> 0 | H11: SY
C12: PATH
E13: Area | F13: = | G13: =AREA!$I$18 -> 0 | H13: SY
D15: Stone Dust Total
D16: Area (SY) | E16: Depth (in.) | F16: Ton/sy/in | G16: Tons
D17: =G11+G13 -> 0 | E17: 4 | F17: =1.5/36 -> 0.04166666667 | G17: =D17*E17*F17 -> 0
E19: **2' shoulders on each side
C22: EQUESTRIAN TRAIL
C23: 10' width assumed - 2" stone dust over 6" gravel
E25: Length of unpaved | F25: = | G25: =SUMIF('USER INTERFACE'!G23:J23,'USER INTERFACE'!$U$33,'USER INTERFACE'!$G$17:$J$17) -> 0 | H25: FT
C27: 704.12 | D27: STONE DUST PAVEMENT | G27: =G31 -> 0 | H27: TONS | I27: 30 | J27: =G27*I27 -> 0
D29: Stone Dust Total
D30: Area (SY) | E30: Depth (in.) | F30: Ton/sy/in | G30: Tons
D31: =$G$25*10/9 -> 0 | E31: 2 | F31: =1.5/36 -> 0.04166666667 | G31: =D31*E31*F31 -> 0
C33: 151 | D33: GRAVEL BORROW | G33: =G37 -> 0 | H33: CY | I33: =IF(VLOOKUP(C33,PRICES!$B$2:$J$9998,9,FALSE)<>0,VLOOKUP(C33,PRICES!$B$2:$J$9998,9,FALSE),VLOOKUP(C33,PRICES!$B$2:$H$9998,7,FALSE)) -> 45.07 | J33: =G33*I33 -> 0
F35: Area | G35: =$D$31 -> 0 | H35: SY
F36: 6" depth | G36: 0.5 | H36: FT
G37: =G35*G36/3 -> 0 | H37: CY
D40: = Price not included in MassDOT Database.
F43: Total Cost for Stone Dust | I43: =SUM(J8:J41) -> 0 | J43: DOLLARS

Sheet STABILIZED AGG (hidden)
C2: CALC'D BY: | D2: KA | E2: DATE: | F2: 2018-02-14 | H2: CITY: | I2: =AREA!I2 -> 0
C3: CHK'D BY: | E3: DATE: | H3: PROJECT: | I3: =AREA!I3 -> 0
G7: Path Area | H7: =AREA!$H$20 -> 0 | I7: SF
G8: Shoulder Area | H8: =SUMIF('USER INTERFACE'!$G$21:$J$21,'USER INTERFACE'!$Q14,'USER INTERFACE'!$G$17:$J$17)*4 -> 0 | I8: SF
C9: 120.1 | D9: UNCLASSIFIED EXCAVATION | G9: =SUM(G12:G13) -> 0 | H9: CY | I9: =IF(VLOOKUP(C9,PRICES!$B$2:$J$9998,9,FALSE)<>0,VLOOKUP(C9,PRICES!$B$2:$J$9998,9,FALSE),VLOOKUP(C9,PRICES!$B$2:$H$9998,7,FALSE)) -> 45.87 | J9: =G9*I9 -> 0
D11: Area (SF) | E11: Depth (ft.)
C12: Path | D12: =$H$7 -> 0 | E12: =1 -> 1 | F12: = | G12: =(D12*E12)/27 -> 0 | H12: CY
C13: Shoulder | D13: =$H$8 -> 0 | E13: =1 -> 1 | F13: = | G13: =(D13*E13)/27 -> 0 | H13: CY
C15: 151 | D15: GRAVEL BORROW | G15: =G18+G19 -> 0 | H15: CY | I15: =IF(VLOOKUP(C15,PRICES!$B$2:$J$9998,9,FALSE)<>0,VLOOKUP(C15,PRICES!$B$2:$J$9998,9,FALSE),VLOOKUP(C15,PRICES!$B$2:$H$9998,7,FALSE)) -> 45.07 | J15: =G15*I15 -> 0
D17: Area (SF) | E17: Depth (ft.)
C18: Path | D18: =$H$7 -> 0 | E18: =8/12 -> 0.6666666667 | F18: = | G18: =(D18*E18)/27 -> 0 | H18: CY
C19: Shoulder | D19: =$H$8 -> 0 | E19: =8/12 -> 0.6666666667 | F19: = | G19: =(D19*E19)/27 -> 0 | H19: CY
C21: 704.01 | D21: STABILIZED AGGREGATE | G21: =G24 -> 0 | H21: SY | I21: 44 | J21: =G21*I21 -> 0
E23: Total Area | F23: = | G23: =SUM(H7:H8) -> 0 | H23: SF
F24: = | G24: =G23/9 -> 0 | H24: SY
C26: Aggregate layer is 4" over a gravel sub-grade, $44/SY cost is from DCR. | M26: Stabilized Aggregate Total
M27: Area (SY) | N27: Depth (in.) | O27: Ton/sy/in | P27: Tons
M28: =G24 -> 0 | N28: 4 | O28: =1.5/36 -> 0.04166666667 | P28: =M28*N28*O28 -> 0
D40: = Price not included in MassDOT Database.
H43: Total Cost for Stabilized Aggregate | I43: =SUM(J7:J42) -> 0 | J43: DOLLARS

Sheet CONCRETE (hidden)
C2: CALC'D BY: | D2: KA | E2: DATE: | F2: 2017-10-13 | H2: CITY: | I2: =AREA!I2 -> 0
C3: CHK'D BY: | D3: KR | E3: DATE: | F3: 2017-11-15 | H3: PROJECT: | I3: =AREA!I3 -> 0
G7: Shoulder Area | H7: =SUMIF('USER INTERFACE'!$G$21:$J$21,'USER INTERFACE'!$Q13,'USER INTERFACE'!$G$17:$J$17)*4 -> 0 | I7: SF
C8: 120.1 | D8: UNCLASSIFIED EXCAVATION | G8: =G11+G12 -> 0 | H8: CY | I8: =IF(VLOOKUP(C8,PRICES!$B$2:$J$9998,9,FALSE)<>0,VLOOKUP(C8,PRICES!$B$2:$J$9998,9,FALSE),VLOOKUP(C8,PRICES!$B$2:$H$9998,7,FALSE)) -> 45.87 | J8: =G8*I8 -> 0
D10: Area (SF) | E10: Depth (ft.)
C11: Path | D11: =AREA!$H$19 -> 0 | E11: =1 -> 1 | F11: = | G11: =(D11*E11)/27 -> 0 | H11: CY
C12: Shoulder | D12: =$H$7 -> 0 | E12: =1 -> 1 | F12: = | G12: =(D12*E12)/27 -> 0 | H12: CY
C14: 151 | D14: GRAVEL BORROW | G14: =G17+G18 -> 0 | H14: CY | I14: =IF(VLOOKUP(C14,PRICES!$B$2:$J$9998,9,FALSE)<>0,VLOOKUP(C14,PRICES!$B$2:$J$9998,9,FALSE),VLOOKUP(C14,PRICES!$B$2:$H$9998,7,FALSE)) -> 45.07 | J14: =G14*I14 -> 0
D16: Area (SF) | E16: Depth (ft.)
C17: Path | D17: =$D$11 -> 0 | E17: =8/12 -> 0.6666666667 | F17: = | G17: =(D17*E17)/27 -> 0 | H17: CY
C18: Shoulder | D18: =$H$7 -> 0 | E18: =8/12 -> 0.6666666667 | F18: = | G18: =(D18*E18)/27 -> 0 | H18: CY
C20: 440 | D20: CALCIUM CHLORIDE FOR ROADWAY DUST CONTROL | G20: =ROUNDUP(E23,0) -> 0 | H20: LBS | I20: =IF(VLOOKUP(C20,PRICES!$B$2:$J$9998,9,FALSE)<>0,VLOOKUP(C20,PRICES!$B$2:$J$9998,9,FALSE),VLOOKUP(C20,PRICES!$B$2:$H$9998,7,FALSE)) -> 0.42 | J20: =G20*I20 -> 0
C22: Area (SY) | D22: LBS/SY | E22: LBS
C23: =$D$11/9+$H$7/9 -> 0 | D23: 1.5 | E23: =C23*D23 -> 0
C25: 170 | D25: FINE GRADING AND COMPACTING | G25: =G27 -> 0 | H25: SY | I25: =IF(VLOOKUP(C25,PRICES!$B$2:$J$9998,9,FALSE)<>0,VLOOKUP(C25,PRICES!$B$2:$J$9998,9,FALSE),VLOOKUP(C25,PRICES!$B$2:$H$9998,7,FALSE)) -> 5.8 | J25: =G25*I25 -> 0
E27: =C23 -> 0 | F27: = | G27: =E27 -> 0 | H27: SY
C30: 701 | D30: CEMENT CONCRETE SIDEWALKS | G30: =G32 -> 0 | H30: SY | I30: =IF(VLOOKUP(C30,PRICES!$B$2:$J$9998,9,FALSE)<>0,VLOOKUP(C30,PRICES!$B$2:$J$9998,9,FALSE),VLOOKUP(C30,PRICES!$B$2:$H$9998,7,FALSE)) -> 64.79 | J30: =G30*I30 -> 0
E32: =C23 -> 0 | F32: = | G32: =E32 -> 0 | H32: SY
M38: =I43/4000 -> 0
F43: Total Cost for Concrete | I43: =SUM(J7:J42) -> 0 | J43: DOLLARS

Sheet CRUSHED STONE (hidden)
C2: CALC'D BY: | D2: KA | E2: DATE: | F2: 2017-10-31 | H2: CITY: | I2: =AREA!I2 -> 0
C3: CHK'D BY: | D3: KR | E3: DATE: | F3: 2017-11-15 | H3: PROJECT: | I3: =AREA!I3 -> 0
G7: Shoulder Area | H7: =SUMIF('USER INTERFACE'!$G$21:$J$21,'USER INTERFACE'!$Q15,'USER INTERFACE'!$G$17:$J$17)*4 -> 0 | I7: SF
C8: 156 | D8: CRUSHED STONE | G8: =G20 -> 0 | H8: TONS | I8: =IF(VLOOKUP(C8,PRICES!$B$2:$J$9998,9,FALSE)<>0,VLOOKUP(C8,PRICES!$B$2:$J$9998,9,FALSE),VLOOKUP(C8,PRICES!$B$2:$H$9998,7,FALSE)) -> 49.3 | J8: =G8*I8 -> 0
C10: SHOULDER
E11: Area | F11: = | G11: =$H$7/9 -> 0 | H11: SY
C13: 120.1 | D13: UNCLASSIFIED EXCAVATION | G13: =G16 -> 0 | H13: CY | I13: =IF(VLOOKUP(C13,PRICES!$B$2:$J$9998,9,FALSE)<>0,VLOOKUP(C13,PRICES!$B$2:$J$9998,9,FALSE),VLOOKUP(C13,PRICES!$B$2:$H$9998,7,FALSE)) -> 45.87 | J13: =G13*I13 -> 0
D15: Area (SF) | E15: Depth (ft.)
C16: Shoulder | D16: =H7 -> 0 | E16: =E20/12 -> 0.3333333333 | F16: = | G16: =(D16*E16)/27 -> 0 | H16: CY
D18: Crushed Stone Total
D19: Area (SY) | E19: Depth (in.) | F19: Ton/sy/in | G19: Tons
D20: =G11 -> 0 | E20: 4 | F20: 0.056 | G20: =D20*E20*F20 -> 0
E22: **2' shoulders on each side
D36: = Price not included in MassDOT Database.
H43: Total Cost for Crushed Stone | I43: =SUM(J7:J42) -> 0 | J43: DOLLARS

Sheet MULCH (hidden)
C2: CALC'D BY: | D2: KA | E2: DATE: | F2: 2017-10-31 | H2: CITY: | I2: =AREA!I2 -> 0
C3: CHK'D BY: | D3: KR | E3: DATE: | F3: 2017-11-15 | H3: PROJECT: | I3: =AREA!I3 -> 0
G7: Shoulder Area | H7: =SUMIF('USER INTERFACE'!$G$21:$J$21,'USER INTERFACE'!$Q17,'USER INTERFACE'!$G$17:$J$17)*4 -> 0 | I7: SF
C8: 769 | D8: PAVEMENT MILLING MULCH | G8: =G11 -> 0 | H8: FT | I8: =IF(VLOOKUP(C8,PRICES!$B$2:$J$9998,9,FALSE)<>0,VLOOKUP(C8,PRICES!$B$2:$J$9998,9,FALSE),VLOOKUP(C8,PRICES!$B$2:$H$9998,7,FALSE)) -> 9.66 | J8: =G8*I8 -> 0 | M8: 1631
C10: Milling Mulch Shoulder
E11: Length | F11: = | G11: =$H$7/4 -> 0 | H11: FT | I11: | 2' shoulders each side
C13: 120.1 | D13: UNCLASSIFIED EXCAVATION | G13: =G16 -> 0 | H13: CY | I13: =IF(VLOOKUP(C13,PRICES!$B$2:$J$9998,9,FALSE)<>0,VLOOKUP(C13,PRICES!$B$2:$J$9998,9,FALSE),VLOOKUP(C13,PRICES!$B$2:$H$9998,7,FALSE)) -> 45.87 | J13: =G13*I13 -> 0
D15: Area (SF) | E15: Depth (ft.)
C16: Shoulder | D16: =H7 -> 0 | E16: =4/12 -> 0.3333333333 | F16: = | G16: =(D16*E16)/27 -> 0 | H16: CY
C18: 151 | D18: GRAVEL BORROW | G18: =G21 -> 0 | H18: CY | I18: =IF(VLOOKUP(C18,PRICES!$B$2:$J$9998,9,FALSE)<>0,VLOOKUP(C18,PRICES!$B$2:$J$9998,9,FALSE),VLOOKUP(C18,PRICES!$B$2:$H$9998,7,FALSE)) -> 45.07 | J18: =G18*I18 -> 0
D20: Area (SF) | E20: Depth (ft.)
C21: Shoulder | D21: =H7 -> 0 | E21: =4/12 -> 0.3333333333 | F21: = | G21: =(D21*E21)/27 -> 0 | H21: CY
D36: = Price not included in MassDOT Database.
H43: Total Cost for Milling Mulch | I43: =SUM(J7:J42) -> 0 | J43: DOLLARS

Sheet MISC (hidden)
C2: CALC'D BY: | D2: KA | E2: DATE: | F2: 2017-10-31 | H2: CITY: | I2: =AREA!I2 -> 0
C3: CHK'D BY: | D3: KR | E3: DATE: | F3: 2017-11-15 | H3: PROJECT: | I3: =AREA!I3 -> 0
C8: 665.3 | D8: WOOD RAIL FENCE | G8: =SUM(H11:H14) -> 0 | H8: FT | I8: 50 | J8: =G8*I8 -> 0
C9: Assume 50% of path has afence on both sides if hilly or waterfront, otherwise 25%. 100% for boardwalk.
C11: Boardwalk length | D11: =AREA!H33 -> 0 | E11: 2 | F11: 1 | G11: = | H11: =(D11*E11)*F11 -> 0
C12: Wooded/hilly length | D12: =SUMIF('USER INTERFACE'!$G$18:$J$18,'USER INTERFACE'!$X$24,'USER INTERFACE'!$G$17:$J$17) -> 0 | E12: 2 | F12: 0.5 | G12: = | H12: =(D12*E12)*F12 -> 0
C13: Waterfront length | D13: =SUMIF('USER INTERFACE'!$G$18:$J$18,'USER INTERFACE'!$X$25,'USER INTERFACE'!$G$17:$J$17) -> 0 | E13: 2 | F13: 0.5 | G13: = | H13: 0
C14: Remaining length | D14: =AREA!H31-MISC!D13-MISC!D12 -> 0 | E14: 2 | F14: 0.25 | G14: = | H14: 0
C16: 751 | D16: LOAM BORROW | G16: =G27 -> 0 | H16: CY | I16: =IF(VLOOKUP(C16,PRICES!$B$2:$J$9998,9,FALSE)<>0,VLOOKUP(C16,PRICES!$B$2:$J$9998,9,FALSE),VLOOKUP(C16,PRICES!$B$2:$H$9998,7,FALSE)) -> 66.11 | J16: =G16*I16 -> 0
G18: Grass shoulder Area: | H18: =SUMIF('USER INTERFACE'!$G$21:$J$21,'USER INTERFACE'!$Q16,'USER INTERFACE'!$G$17:$J$17) -> 0 | I18: SF
G19: Equestrian Grass Area, assume 10' W: | H19: =SUMIF('USER INTERFACE'!G23:J23,'USER INTERFACE'!$U$32,'USER INTERFACE'!$G$17:$J$17)*10 -> 0 | I19: SF
F21: Shoulder + Equestrian Trail: | G21: =SUM(H18:H19) -> 0 | H21: SF
F22: Loam Depth: | G22: =4/12 -> 0.3333333333 | H22: FT
F23: Total | G23: =((G21*G22)/27) -> 0 | H23: CY
F24: Contingency | G24: =IF(G21=0,0,10) -> 0 | H24: CY
F25: Total | G25: =G23+G24 -> 0 | H25: CY
F26: + 25% SWELL | G26: =G25*0.25 -> 0
F27: Total = | G27: =SUM(G25:G26) -> 0 | H27: CY
C29: 765 | D29: SEEDING | G29: =G21/9 -> 0 | H29: SY | I29: =IF(VLOOKUP(C29,PRICES!$B$2:$J$9998,9,FALSE)<>0,VLOOKUP(C29,PRICES!$B$2:$J$9998,9,FALSE),VLOOKUP(C29,PRICES!$B$2:$H$9998,7,FALSE)) -> 1.83 | J29: =G29*I29 -> 0
C30: Include clearing & grubbing for equestrian trails + paths through woods
C32: 101 | D32: CLEARING AND GRUBBING | G32: =SUM(H38)/43560 -> 0 | H32: A | I32: =IF(VLOOKUP(C32,PRICES!$B$2:$J$9998,9,FALSE)<>0,VLOOKUP(C32,PRICES!$B$2:$J$9998,9,FALSE),VLOOKUP(C32,PRICES!$B$2:$H$9998,7,FALSE)) -> 35950.71 | J32: =G32*I32 -> 0
C33: Assume average width + 20' (4' shld+6' grading+10' beyond LOG) or average width + 10' for equestrian. | M33: Average Rail Trail Width
F34: Ave width (ft) | G34: Length (ft) | M34: =SUMIF('USER INTERFACE'!G19:J19,"Rail "&"*",'USER INTERFACE'!$G$22:$J$22)/COUNTIF('USER INTERFACE'!G19:J19,"Rail "&"*") -> 
D35: Rail Trail or Rail w/ Trail Area | E35: 20 | F35: =IF(SUMIF('USER INTERFACE'!G19:J19,"Rail "&"*"<>0,'USER INTERFACE'!$G$22:$J$22)<>0,(SUMIF('USER INTERFACE'!G19:J19,"Rail "&"*",'USER INTERFACE'!$G$22:$J$22)/COUNTIF('USER INTERFACE'!G19:J19,"Rail "&"*")),0) -> 0 | G35: =SUMIF('USER INTERFACE'!G19:J19,"Rail "&"*",'USER INTERFACE'!$G$17:$J$17) -> 0 | H35: =(E35+F35)*G35 -> 0 | I35: SF
D36: Wooded Area | E36: 20 | F36: =IF(SUMIF('USER INTERFACE'!G19:J19,"Rail "&"*"<>0,'USER INTERFACE'!$G$22:$J$22)<>0,SUMIF('USER INTERFACE'!$G$18:$J$18,'USER INTERFACE'!$X$24,'USER INTERFACE'!$G$22:$J$22)/COUNTIF('USER INTERFACE'!$G$18:$J$18,'USER INTERFACE'!$X$24),0) -> 0 | G36: =SUMIF('USER INTERFACE'!$G$18:$J$18,'USER INTERFACE'!$X$24,'USER INTERFACE'!$G$17:$J$17) -> 0 | H36: =(E36+F36)*G36 -> 0 | I36: SF
D37: Equestrian Area | E37: 10 | F37: =SUMIF('USER INTERFACE'!G23:J23,"<>No",'USER INTERFACE'!$G$22:$J$22)/COUNTIF('USER INTERFACE'!G23:J23,"<>No") -> 0 | G37: =SUMIF('USER INTERFACE'!G23:J23,"<>No",'USER INTERFACE'!$G$17:$J$17) -> 0 | H37: =(E37+F37)*G37 -> 0 | I37: SF
H38: =SUM(H35:H37) -> 0 | I38: SF
D40: = Price not included in MassDOT Database.
H43: Total Cost for Fence/Curbing/Edging | I43: =SUM(J7:K40) -> 0 | J43: DOLLARS

Sheet INTERSECTIONS (hidden)
C2: CALC'D BY: | D2: KA | E2: DATE: | F2: 2017-10-16 | H2: CITY: | I2: =AREA!I2 -> 0
C3: CHK'D BY: | D3: KR | E3: DATE: | F3: 2017-11-15 | H3: PROJECT: | I3: =AREA!I3 -> 0
C6: # WCRs | D6: ='USER INTERFACE'!$I$31*2 -> 0
C8: 151 | D8: GRAVEL BORROW | G8: =G10 -> 0 | H8: CY | I8: =IF(VLOOKUP(C8,PRICES!$B$2:$J$9998,9,FALSE)<>0,VLOOKUP(C8,PRICES!$B$2:$J$9998,9,FALSE),VLOOKUP(C8,PRICES!$B$2:$H$9998,7,FALSE)) -> 45.07 | J8: =G8*I8 -> 0
C9: Area (SF) | D9: x | E9: Depth (ft.)
C10: =AREA!$H$14 -> 0 | E10: =8/12 -> 0.6666666667 | F10: = | G10: =(C10*E10)/27 -> 0 | H10: CY
C12: 170 | D12: FINE GRADING AND COMPACTING | G12: =G15 -> 0 | H12: SY | I12: =IF(VLOOKUP(C12,PRICES!$B$2:$J$9998,9,FALSE)<>0,VLOOKUP(C12,PRICES!$B$2:$J$9998,9,FALSE),VLOOKUP(C12,PRICES!$B$2:$H$9998,7,FALSE)) -> 5.8 | J12: =G12*I12 -> 0
C13: 701.2 | D13: CEMENT CONCRETE SIDEWALKS FOR WCR | G13: =G15 -> 0 | H13: SY | I13: =IF(VLOOKUP(C13,PRICES!$B$2:$J$9998,9,FALSE)<>0,VLOOKUP(C13,PRICES!$B$2:$J$9998,9,FALSE),VLOOKUP(C13,PRICES!$B$2:$H$9998,7,FALSE)) -> 100.92 | J13: =G13*I13 -> 0
D15: From Area Summary: | E15: =AREA!$I$14 -> 0 | F15: = | G15: =E15 -> 0 | H15: SY
C17: 440 | D17: CALCIUM CHLORIDE FOR ROADWAY DUST CONTROL | G17: =ROUNDUP(E19,0) -> 0 | H17: LBS | I17: =IF(VLOOKUP(C17,PRICES!$B$2:$J$9998,9,FALSE)<>0,VLOOKUP(C17,PRICES!$B$2:$J$9998,9,FALSE),VLOOKUP(C17,PRICES!$B$2:$H$9998,7,FALSE)) -> 0.42 | J17: =G17*I17 -> 0
C18: Area (SY) | D18: LBS/SY | E18: LBS
C19: =AREA!$I$14 -> 0 | D19: 1.5 | E19: =C19*D19 -> 0
C21: 509 | D21: GRANITE TRANSITION CURB FOR WCR - STRAIGHT | G21: =G23 -> 0 | H21: FT | I21: =IF(VLOOKUP(C21,PRICES!$B$2:$J$9998,9,FALSE)<>0,VLOOKUP(C21,PRICES!$B$2:$J$9998,9,FALSE),VLOOKUP(C21,PRICES!$B$2:$H$9998,7,FALSE)) -> 54.15 | J21: =G21*I21 -> 0
D23: =$D$6 -> 0 | E23: =6.5*2 -> 13 | F23: = | G23: =D23*E23 -> 0 | H23: FT
C25: 874 | D25: STREET NAME SIGN | G25: =G26 -> 0 | H25: EA | I25: =IF(VLOOKUP(C25,PRICES!$B$2:$J$9998,9,FALSE)<>0,VLOOKUP(C25,PRICES!$B$2:$J$9998,9,FALSE),VLOOKUP(C25,PRICES!$B$2:$H$9998,7,FALSE)) -> 118.63 | J25: =G25*I25 -> 0
F26: At each approach: | G26: ='USER INTERFACE'!$I$31 -> 0
C28: 866.112 | D28: 12 INCH REFLECTORIZED WHITE LINE (THERMOPLASTIC) | G28: =G40 -> 0 | H28: FT | I28: =IF(VLOOKUP(C28,PRICES!$B$2:$J$9998,9,FALSE)<>0,VLOOKUP(C28,PRICES!$B$2:$J$9998,9,FALSE),VLOOKUP(C28,PRICES!$B$2:$H$9998,7,FALSE)) -> 5.32 | J28: =G28*I28 -> 0
C30: 867.112 | D30: 12 INCH REFLECTORIZED YELLOW LINE (THERMOPLASTIC) | G30: =G32 -> 0 | H30: FT | I30: =IF(VLOOKUP(C30,PRICES!$B$2:$J$9998,9,FALSE)<>0,VLOOKUP(C30,PRICES!$B$2:$J$9998,9,FALSE),VLOOKUP(C30,PRICES!$B$2:$H$9998,7,FALSE)) -> 4.72 | J30: =G30*I30 -> 0
F32: 20' line before each crossing: | G32: =$G$26*20 -> 0 | H32: FT
C34: ###.### | D34: RRFB | G34: =COUNTIF('USER INTERFACE'!$Q$60:$R$79,"RRFB") -> 0 | H34: EA | I34: 20000 | J34: =G34*I34 -> 0
C36: ###.### | D36: HAWK | G36: =COUNTIF('USER INTERFACE'!$Q$60:$R$79,"HAWK") -> 0 | H36: EA | I36: 75000 | J36: =G36*I36 -> 0
C38: ###.### | D38: FULL SIGNALIZATION | G38: =COUNTIF('USER INTERFACE'!$Q$60:$R$79,"SIGNALIZATION") -> 0 | H38: EA | I38: 150000 | J38: =G38*I38 -> 0
F43: Total Cost for Concrete | I43: =SUM(J7:J41) -> 0 | J43: DOLLARS

Sheet ENVIRONMENTAL (hidden)
C2: CALC'D BY: | D2: KA | E2: DATE: | F2: 2018-02-13 | H2: CITY: | I2: =AREA!I2 -> 0
C3: CHK'D BY: | D3: KR | E3: DATE: | F3: 2017-11-15 | H3: PROJECT: | I3: =AREA!I3 -> 0
C7: 767.121 | D7: SEDIMENT CONTROLS* | G7: =G9 -> 0 | H7: FT | I7: =IF(VLOOKUP(C7,PRICES!$B$2:$J$9998,9,FALSE)<>0,VLOOKUP(C7,PRICES!$B$2:$J$9998,9,FALSE),VLOOKUP(C7,PRICES!$B$2:$H$9998,7,FALSE)) -> 7.01 | J7: =G7*I7 -> 0
D8: Placed at bottom of proposed slopes
D9: Assume one length of project | G9: =AREA!$H$31 -> 0 | H9: ft
D10: *Formerly COMPOST FILTER TUBES
C12: If path is on a railroad (w/ or w/o existing ties) assume 2% contingecy for contamination (180 items).
C14: 180s | D14: CONTAMINATION CONTINGENCY | G14: 1 | H14: LS | I14: =G24 -> 0 | J14: =G14*I14 -> 0
F16: Length of rail trail segments w/ existing ties: | G16: =SUMIF('USER INTERFACE'!$G$19:$J$19,'USER INTERFACE'!U27,'USER INTERFACE'!$G$17:$J$17) -> 0 | H16: ft
F17: Length of Rails with Trails or Rail Trail w/o existing ties: | G17: =SUMIF('USER INTERFACE'!$G$19:$J$19,'USER INTERFACE'!U26,'USER INTERFACE'!$G$17:$J$17)+SUMIF('USER INTERFACE'!$G$19:$J$19,'USER INTERFACE'!U28,'USER INTERFACE'!$G$17:$J$17) -> 0 | H17: ft
F18: Total Length of Path: | G18: =AREA!H31 -> 0 | H18: ft
F20: Ratio of path along/on rail: | G20: =IF(G18>0,(G16+G17)/G18,0) -> 0
F21: Construction Cost (without structural or environmental): | G21: =ROUND(ASPHALT!$I$43+'POROUS ASPHALT'!$I$43+'STONE DUST'!I43+CONCRETE!$I$43+MISC!$I$43+'CRUSHED STONE'!$I$43+DRAINAGE!$I$43+INTERSECTIONS!$I$43+MISC!$I$43,-2)*(1+LANDSCAPING!F13) -> 0 | M21: manually add in landscaping to avoid circular reference
F22: Rail Trail construction cost: | G22: =G21*G20 -> 0
F24: 2% Contingency: | G24: =G22*0.02 -> 0
C26: If path is on a railroad w/ existing ties, also assume track and tie excavation.
C28: 129.5 | D28: TRACK EXCAVATION | G28: =G16 -> 0 | H28: FT | I28: =IF(VLOOKUP(C28,PRICES!$B$2:$J$9998,9,FALSE)<>0,VLOOKUP(C28,PRICES!$B$2:$J$9998,9,FALSE),VLOOKUP(C28,PRICES!$B$2:$H$9998,7,FALSE)) -> 32.25 | J28: =G28*I28 -> 0
C29: 129.7 | D29: HANDLING AND TRANSPORTING RAIL | G29: =G16*2 -> 0 | H29: FT | I29: 5 | J29: =G29*I29 -> 0
C31: 184.1 | D31: DISPOSAL OF TREATED WOOD PRODUCTS | G31: =G35 -> 0 | H31: TON | I31: =IF(VLOOKUP(C31,PRICES!$B$2:$J$9998,9,FALSE)<>0,VLOOKUP(C31,PRICES!$B$2:$J$9998,9,FALSE),VLOOKUP(C31,PRICES!$B$2:$H$9998,7,FALSE)) -> 322 | J31: =G31*I31 -> 0 | M31: wooden ties typ 7"x9"x8.5' spaced at 19.5" o.c.
C32: Wooden ties are typically 7"x9"x8.5' spaced 19.5" o.c., weighing 56 pounds per cubic foot. | M32: wood 56 pcf
F33: Weight per tie: | G33: =(7*9)/144*8.5*56 -> 208.25 | H33: lbs
F34: # ties: | G34: =G16*12/19.5*2 -> 0 | H34: ea. | I34: | Assume two tracks
F35: Total weight: | G35: =G33*G34/2000 -> 0 | H35: TON
D40: = Price not included in MassDOT Database.
H43: Total Cost for Environmental | I43: =SUM(J7:K40) -> 0 | J43: DOLLARS

Sheet BRIDGE (hidden)
C2: CALC'D BY: | D2: KA | E2: DATE: | F2: 2018-02-21 | H2: CITY: | I2: =AREA!I2 -> 0
C3: CHK'D BY: | E3: DATE: | H3: PROJECT: | I3: =AREA!I3 -> 0
H6: Assume $100/ft for bridges. Sum is included on Lighting tab.
C7: From Intersection Crossings:
D8: Crossing # | E8: No. Lanes | F8: Length | G8: Lighting | I8: Lighting Cost
D9: =IFERROR(INDEX('USER INTERFACE'!$B$60:$B$79,SMALL(IF("Bridge"='USER INTERFACE'!$B$60:$J$79,ROW('USER INTERFACE'!$B$60:$B$79)-MIN(ROW('USER INTERFACE'!$B$60:$B$79))+1,""),ROW()-8)),"No") -> No | E9: =IF(D9="No",0,VLOOKUP(D9,'USER INTERFACE'!$B$60:$H79,5,FALSE)) -> 0 | F9: =IF(E9>0,12*E9+50,"") ->  | G9: =IF(D9="No",0,VLOOKUP(D9,'USER INTERFACE'!$B$60:$I79,8,FALSE)) -> 0 | I9: =IF(G9='USER INTERFACE'!$U$38,IF(F9<>"",F9*$N$17,0),0) -> 0
D10: No | E10: =IF(D10="No",0,VLOOKUP(D10,'USER INTERFACE'!$C$60:$I80,5,FALSE)) -> 0 | F10: =IF(E10>0,12*E10+50,"") ->  | G10: =IF(D10="No",0,VLOOKUP(D10,'USER INTERFACE'!$B$60:$I80,8,FALSE)) -> 0 | I10: =IF(G10='USER INTERFACE'!$U$38,IF(F10<>"",F10*$N$17,0),0) -> 0
D11: No | E11: =IF(D11="No",0,VLOOKUP(D11,'USER INTERFACE'!$C$60:$I81,5,FALSE)) -> 0 | G11: =IF(D11="No",0,VLOOKUP(D11,'USER INTERFACE'!$B$60:$I81,8,FALSE)) -> 0 | I11: =IF(G11='USER INTERFACE'!$U$38,IF(F11<>"",F11*$N$17,0),0) -> 0
D12: No | E12: =IF(D12="No",0,VLOOKUP(D12,'USER INTERFACE'!$C$60:$I82,5,FALSE)) -> 0 | G12: =IF(D12="No",0,VLOOKUP(D12,'USER INTERFACE'!$B$60:$I82,8,FALSE)) -> 0 | I12: =IF(G12='USER INTERFACE'!$U$38,IF(F12<>"",F12*$N$17,0),0) -> 0
D13: No | E13: =IF(D13="No",0,VLOOKUP(D13,'USER INTERFACE'!$C$60:$I83,5,FALSE)) -> 0 | G13: =IF(D13="No",0,VLOOKUP(D13,'USER INTERFACE'!$B$60:$I83,8,FALSE)) -> 0 | I13: =IF(G13='USER INTERFACE'!$U$38,IF(F13<>"",F13*$N$17,0),0) -> 0
D14: No | E14: =IF(D14="No",0,VLOOKUP(D14,'USER INTERFACE'!$C$60:$I84,5,FALSE)) -> 0 | G14: =IF(D14="No",0,VLOOKUP(D14,'USER INTERFACE'!$B$60:$I84,8,FALSE)) -> 0 | I14: =IF(G14='USER INTERFACE'!$U$38,IF(F14<>"",F14*$N$17,0),0) -> 0
D15: No | E15: =IF(D15="No",0,VLOOKUP(D15,'USER INTERFACE'!$C$60:$I85,5,FALSE)) -> 0 | G15: =IF(D15="No",0,VLOOKUP(D15,'USER INTERFACE'!$B$60:$I85,8,FALSE)) -> 0 | I15: =IF(G15='USER INTERFACE'!$U$38,IF(F15<>"",F15*$N$17,0),0) -> 0
D16: No | E16: =IF(D16="No",0,VLOOKUP(D16,'USER INTERFACE'!$C$60:$I86,5,FALSE)) -> 0 | G16: =IF(D16="No",0,VLOOKUP(D16,'USER INTERFACE'!$B$60:$I86,8,FALSE)) -> 0 | I16: =IF(G16='USER INTERFACE'!$U$38,IF(F16<>"",F16*$N$17,0),0) -> 0
D17: No | E17: =IF(D17="No",0,VLOOKUP(D17,'USER INTERFACE'!$C$60:$I87,5,FALSE)) -> 0 | G17: =IF(D17="No",0,VLOOKUP(D17,'USER INTERFACE'!$B$60:$I87,8,FALSE)) -> 0 | I17: =IF(G17='USER INTERFACE'!$U$38,IF(F17<>"",F17*$N$17,0),0) -> 0 | M17: Assume | N17: 100 | O17: per foot for lighting
D18: No | E18: =IF(D18="No",0,VLOOKUP(D18,'USER INTERFACE'!$C$60:$I88,5,FALSE)) -> 0 | G18: =IF(D18="No",0,VLOOKUP(D18,'USER INTERFACE'!$B$60:$I88,8,FALSE)) -> 0 | I18: =IF(G18='USER INTERFACE'!$U$38,IF(F18<>"",F18*$N$17,0),0) -> 0
D19: No | E19: =IF(D19="No",0,VLOOKUP(D19,'USER INTERFACE'!$C$60:$I89,5,FALSE)) -> 0 | G19: =IF(D19="No",0,VLOOKUP(D19,'USER INTERFACE'!$B$60:$I89,8,FALSE)) -> 0 | I19: =IF(G19='USER INTERFACE'!$U$38,IF(F19<>"",F19*$N$17,0),0) -> 0
D20: No | E20: =IF(D20="No",0,VLOOKUP(D20,'USER INTERFACE'!$C$60:$I90,5,FALSE)) -> 0 | G20: =IF(D20="No",0,VLOOKUP(D20,'USER INTERFACE'!$B$60:$I90,8,FALSE)) -> 0 | I20: =IF(G20='USER INTERFACE'!$U$38,IF(F20<>"",F20*$N$17,0),0) -> 0
D21: No | E21: =IF(D21="No",0,VLOOKUP(D21,'USER INTERFACE'!$C$60:$I91,5,FALSE)) -> 0 | G21: =IF(D21="No",0,VLOOKUP(D21,'USER INTERFACE'!$B$60:$I91,8,FALSE)) -> 0 | I21: =IF(G21='USER INTERFACE'!$U$38,IF(F21<>"",F21*$N$17,0),0) -> 0
D22: No | E22: =IF(D22="No",0,VLOOKUP(D22,'USER INTERFACE'!$C$60:$I93,5,FALSE)) -> 0 | G22: =IF(D22="No",0,VLOOKUP(D22,'USER INTERFACE'!$B$60:$I93,8,FALSE)) -> 0 | I22: =IF(G22='USER INTERFACE'!$U$38,IF(F22<>"",F22*$N$17,0),0) -> 0
D23: No | E23: =IF(D23="No",0,VLOOKUP(D23,'USER INTERFACE'!$C$60:$I94,5,FALSE)) -> 0 | G23: =IF(D23="No",0,VLOOKUP(D23,'USER INTERFACE'!$B$60:$I94,8,FALSE)) -> 0 | I23: =IF(G23='USER INTERFACE'!$U$38,IF(F23<>"",F23*$N$17,0),0) -> 0
D24: No | E24: =IF(D24="No",0,VLOOKUP(D24,'USER INTERFACE'!$C$60:$I95,5,FALSE)) -> 0 | G24: =IF(D24="No",0,VLOOKUP(D24,'USER INTERFACE'!$B$60:$I95,8,FALSE)) -> 0 | I24: =IF(G24='USER INTERFACE'!$U$38,IF(F24<>"",F24*$N$17,0),0) -> 0
C26: # of river crossings? | E26: ='USER INTERFACE'!$I$33 -> 0
C28: Crossing # | D28: Width | E28: Exist Bridge? | F28: Bridge Length | G28: Lighting | I28: Lighting Cost
A29: 1 | C29: =IF($E$26>=A29,A29,"No") -> No | D29: =IF(C29="No",0,VLOOKUP(C29,'USER INTERFACE'!$B$84:$D$91,2,FALSE)) -> 0 | E29: =IF(C29="No",0,VLOOKUP(C29,'USER INTERFACE'!$B$84:$D$91,3,FALSE)) -> 0 | F29: =IF(D29>0,D29+20,0) -> 0 | G29: =IF(C29="No",0,VLOOKUP(C29,'USER INTERFACE'!$B$84:$E$91,4,FALSE)) -> 0 | I29: =IF(G29='USER INTERFACE'!$U$38,IF(F29<>"",F29*$N$17,0),0) -> 0 | L29: 1
A30: 2 | C30: =IF($E$26>=A30,A30,"No") -> No | D30: =IF(C30="No",0,VLOOKUP(C30,'USER INTERFACE'!$B$84:$D$91,2,FALSE)) -> 0 | E30: =IF(C30="No",0,VLOOKUP(C30,'USER INTERFACE'!$B$84:$D$91,3,FALSE)) -> 0 | F30: =IF(D30>0,D30+20,0) -> 0 | G30: =IF(C30="No",0,VLOOKUP(C30,'USER INTERFACE'!$B$84:$E$91,4,FALSE)) -> 0 | I30: =IF(G30='USER INTERFACE'!$U$38,IF(F30<>"",F30*$N$17,0),0) -> 0 | L30: 2
A31: 3 | C31: No | D31: =IF(C31="No",0,VLOOKUP(C31,'USER INTERFACE'!$B$84:$D$91,2,FALSE)) -> 0 | E31: =IF(C31="No",0,VLOOKUP(C31,'USER INTERFACE'!$B$84:$D$91,3,FALSE)) -> 0 | F31: 0 | G31: =IF(C31="No",0,VLOOKUP(C31,'USER INTERFACE'!$B$84:$E$91,4,FALSE)) -> 0 | I31: =IF(G31='USER INTERFACE'!$U$38,IF(F31<>"",F31*$N$17,0),0) -> 0 | L31: 3
A32: 4 | C32: No | D32: =IF(C32="No",0,VLOOKUP(C32,'USER INTERFACE'!$B$84:$D$91,2,FALSE)) -> 0 | E32: =IF(C32="No",0,VLOOKUP(C32,'USER INTERFACE'!$B$84:$D$91,3,FALSE)) -> 0 | F32: 0 | G32: =IF(C32="No",0,VLOOKUP(C32,'USER INTERFACE'!$B$84:$E$91,4,FALSE)) -> 0 | I32: =IF(G32='USER INTERFACE'!$U$38,IF(F32<>"",F32*$N$17,0),0) -> 0 | L32: 4
A33: 5 | C33: No | D33: =IF(C33="No",0,VLOOKUP(C33,'USER INTERFACE'!$B$84:$D$91,2,FALSE)) -> 0 | E33: =IF(C33="No",0,VLOOKUP(C33,'USER INTERFACE'!$B$84:$D$91,3,FALSE)) -> 0 | F33: 0 | G33: =IF(C33="No",0,VLOOKUP(C33,'USER INTERFACE'!$B$84:$E$91,4,FALSE)) -> 0 | I33: =IF(G33='USER INTERFACE'!$U$38,IF(F33<>"",F33*$N$17,0),0) -> 0 | L33: 5
A34: 6 | C34: No | D34: =IF(C34="No",0,VLOOKUP(C34,'USER INTERFACE'!$B$84:$D$91,2,FALSE)) -> 0 | E34: =IF(C34="No",0,VLOOKUP(C34,'USER INTERFACE'!$B$84:$D$91,3,FALSE)) -> 0 | F34: 0 | G34: =IF(C34="No",0,VLOOKUP(C34,'USER INTERFACE'!$B$84:$E$91,4,FALSE)) -> 0 | I34: =IF(G34='USER INTERFACE'!$U$38,IF(F34<>"",F34*$N$17,0),0) -> 0 | L34: 6
A35: 7 | C35: No | D35: =IF(C35="No",0,VLOOKUP(C35,'USER INTERFACE'!$B$84:$D$91,2,FALSE)) -> 0 | E35: =IF(C35="No",0,VLOOKUP(C35,'USER INTERFACE'!$B$84:$D$91,3,FALSE)) -> 0 | F35: 0 | G35: =IF(C35="No",0,VLOOKUP(C35,'USER INTERFACE'!$B$84:$E$91,4,FALSE)) -> 0 | I35: =IF(G35='USER INTERFACE'!$U$38,IF(F35<>"",F35*$N$17,0),0) -> 0 | L35: 7
A36: 8 | C36: No | D36: =IF(C36="No",0,VLOOKUP(C36,'USER INTERFACE'!$B$84:$D$91,2,FALSE)) -> 0 | E36: =IF(C36="No",0,VLOOKUP(C36,'USER INTERFACE'!$B$84:$D$91,3,FALSE)) -> 0 | F36: 0 | G36: =IF(C36="No",0,VLOOKUP(C36,'USER INTERFACE'!$B$84:$E$91,4,FALSE)) -> 0 | I36: =IF(G36='USER INTERFACE'!$U$38,IF(F36<>"",F36*$N$17,0),0) -> 0 | L36: 8
C38: # of railroad bridge crossings? | F38: =SUMIF('USER INTERFACE'!$H$84:$H$91,"Overpass",'USER INTERFACE'!$F$84:$F$91) -> 0
C40: Crossing # | D40: Length | E40: Exist Bridge? | F40: Bridge Length | G40: Lighting | I40: Lighting Cost
A41: 1 | C41: =IFERROR(INDEX('USER INTERFACE'!$F$84:$F$91,SMALL(IF("Overpass"='USER INTERFACE'!$F$84:$K$91,ROW('USER INTERFACE'!$F$84:$F$91)-MIN(ROW('USER INTERFACE'!$F$84:$F$91))+1,""),ROW()-40)),"No") -> No | D41: =IF(C41="No",0,VLOOKUP(C41,'USER INTERFACE'!$F$84:$K$91,2,FALSE)) -> 0 | E41: =IF(C41="No",0,VLOOKUP(C41,'USER INTERFACE'!$F$84:$K$91,4,FALSE)) -> 0 | F41: =IF(D41>0,D41+125,0) -> 0 | G41: =IF(C41="No",0,VLOOKUP(C41,'USER INTERFACE'!$F$84:$J$91,5,FALSE)) -> 0 | I41: =IF(G41='USER INTERFACE'!$U$38,IF(F41<>"",F41*$N$17,0),0) -> 0 | L41: 1
A42: 2 | C42: No | D42: =IF(C42="No",0,VLOOKUP(C42,'USER INTERFACE'!$F$84:$K$91,2,FALSE)) -> 0 | E42: =IF(C42="No",0,VLOOKUP(C42,'USER INTERFACE'!$F$84:$K$91,3,FALSE)) -> 0 | F42: =IF(D42>0,D42+125,0) -> 0 | G42: =IF(C42="No",0,VLOOKUP(C42,'USER INTERFACE'!$F$84:$J$91,5,FALSE)) -> 0 | I42: =IF(G42='USER INTERFACE'!$U$38,IF(F42<>"",F42*$N$17,0),0) -> 0 | L42: 2
A43: 3 | C43: No | D43: =IF(C43="No",0,VLOOKUP(C43,'USER INTERFACE'!$F$84:$K$91,2,FALSE)) -> 0 | E43: =IF(C43="No",0,VLOOKUP(C43,'USER INTERFACE'!$F$84:$K$91,3,FALSE)) -> 0 | F43: 0 | G43: =IF(C43="No",0,VLOOKUP(C43,'USER INTERFACE'!$F$84:$J$91,5,FALSE)) -> 0 | I43: =IF(G43='USER INTERFACE'!$U$38,IF(F43<>"",F43*$N$17,0),0) -> 0 | L43: 3
A44: 4 | C44: No | D44: =IF(C44="No",0,VLOOKUP(C44,'USER INTERFACE'!$F$84:$K$91,2,FALSE)) -> 0 | E44: =IF(C44="No",0,VLOOKUP(C44,'USER INTERFACE'!$F$84:$K$91,3,FALSE)) -> 0 | F44: 0 | G44: =IF(C44="No",0,VLOOKUP(C44,'USER INTERFACE'!$F$84:$J$91,5,FALSE)) -> 0 | I44: =IF(G44='USER INTERFACE'!$U$38,IF(F44<>"",F44*$N$17,0),0) -> 0 | L44: 4
A45: 5 | C45: No | D45: =IF(C45="No",0,VLOOKUP(C45,'USER INTERFACE'!$F$84:$K$91,2,FALSE)) -> 0 | E45: =IF(C45="No",0,VLOOKUP(C45,'USER INTERFACE'!$F$84:$K$91,3,FALSE)) -> 0 | F45: 0 | G45: =IF(C45="No",0,VLOOKUP(C45,'USER INTERFACE'!$F$84:$J$91,5,FALSE)) -> 0 | I45: =IF(G45='USER INTERFACE'!$U$38,IF(F45<>"",F45*$N$17,0),0) -> 0 | L45: 5
A46: 6 | C46: No | D46: =IF(C46="No",0,VLOOKUP(C46,'USER INTERFACE'!$F$84:$K$91,2,FALSE)) -> 0 | E46: =IF(C46="No",0,VLOOKUP(C46,'USER INTERFACE'!$F$84:$K$91,3,FALSE)) -> 0 | F46: 0 | G46: =IF(C46="No",0,VLOOKUP(C46,'USER INTERFACE'!$F$84:$J$91,5,FALSE)) -> 0 | I46: =IF(G46='USER INTERFACE'!$U$38,IF(F46<>"",F46*$N$17,0),0) -> 0 | L46: 6
A47: 7 | C47: No | D47: =IF(C47="No",0,VLOOKUP(C47,'USER INTERFACE'!$F$84:$K$91,2,FALSE)) -> 0 | E47: =IF(C47="No",0,VLOOKUP(C47,'USER INTERFACE'!$F$84:$K$91,3,FALSE)) -> 0 | F47: 0 | G47: =IF(C47="No",0,VLOOKUP(C47,'USER INTERFACE'!$F$84:$J$91,5,FALSE)) -> 0 | I47: =IF(G47='USER INTERFACE'!$U$38,IF(F47<>"",F47*$N$17,0),0) -> 0 | L47: 7
A48: 8 | C48: No | D48: =IF(C48="No",0,VLOOKUP(C48,'USER INTERFACE'!$F$84:$K$91,2,FALSE)) -> 0 | E48: =IF(C48="No",0,VLOOKUP(C48,'USER INTERFACE'!$F$84:$K$91,3,FALSE)) -> 0 | F48: 0 | G48: =IF(C48="No",0,VLOOKUP(C48,'USER INTERFACE'!$F$84:$J$91,5,FALSE)) -> 0 | I48: =IF(G48='USER INTERFACE'!$U$38,IF(F48<>"",F48*$N$17,0),0) -> 0 | L48: 8
D50: SUPERSTRUCTURE ONLY | G50: =SUMIF(E29:E36,'USER INTERFACE'!$U$12,F29:F36)+SUMIF(E41:E48,'USER INTERFACE'!$U$12,F41:F48) -> 0 | H50: FT | I50: 7500 | J50: =G50*I50 -> 0
D51: CLEAN AND REHABILITATE | G51: =SUMIF(E29:E36,"Yes",F29:F36)+SUMIF(I29:I36,"Yes",J29:J36) -> 0 | H51: FT | I51: 1250 | J51: =G51*I51 -> 0
D52: PREFABRICATED STEEL BRIDGE | G52: =SUM(F9:F24)+SUM(SUMIFS(F29:F36,E29:E36,{"No","Needs Replacement"}))+SUM(SUMIFS(E41:E48,F41:F48,{"No","Needs Replacement"})) -> 0 | H52: FT | I52: 10000 | J52: =G52*I52 -> 0
D53: BRIDGE DEMOLITION | G53: =SUMIF(E29:E36,"Needs Replacement",F29:F36)+SUMIF(I29:I36,"Needs Replacement",J29:J36) -> 0 | H53: FT | I53: 2500 | J53: =G53*I53 -> 0
D54: = Price not included in MassDOT Database.
F55: Total Cost for Bridge | I55: =SUM(J50:K53) -> 0 | J55: DOLLARS

Sheet CULVERT (hidden)
C2: CALC'D BY: | D2: KA | E2: DATE: | F2: 2017-11-03 | H2: CITY: | I2: =AREA!I2 -> 0
C3: CHK'D BY: | D3: KR | E3: DATE: | F3: 2017-11-15 | H3: PROJECT: | I3: =AREA!I3 -> 0
H6: Assume $75/ft for culverts. Sum is included on Lighting tab.
N7: 995.011 | O7: CULVERT | R7: 1 | S7: LS | T7: =SUM(J8:J25) -> 0 | U7: =R7*T7 -> 0
C8: Unit Cost for 995.011-1 includes excavation, concrete, rebar, backfill, headwalls and wingwalls.
C9: 995.011-1 | D9: PRECAST CONCRETE BOX CULVERT | G9: =SUM(F13:F28,F33:F40)-SUMIF(G33:G40,"Yes",F33:F40) -> 0 | H9: FT | I9: 12000 | J9: =G9*I9 -> 0 | N9: Assumed/inputted dimensions
C10: 992.3 | D10: TEMPORARY SUPPORTS FOR BRIDGE STRUCTURE | G10: =G9*10*2 -> 0 | H10: SF | I10: 100 | J10: =G10*I10 -> 0 | O10: L (FT.) | P10: W (FT.) | Q10: H (FT.) | R10: AREA (SF) | S10: VOL (CF)
O11: =SUM(F13:F28) -> 0 | P11: 16 | Q11: 10 | R11: =O11*P11 -> 0 | S11: =R11*Q11 -> 0
D12: Crossing # | E12: No. Lanes | F12: Length | G12: Lighting | I12: Lighting Cost
D13: =IFERROR(INDEX('USER INTERFACE'!$B$60:$B$79,SMALL(IF("Culvert"='USER INTERFACE'!$B$60:$J$79,ROW('USER INTERFACE'!$B$60:$B$79)-MIN(ROW('USER INTERFACE'!$B$60:$B$79))+1,""),ROW()-12)),"No") -> No | E13: =IF(D13="No",0,VLOOKUP(D13,'USER INTERFACE'!$B$60:$H$79,5,FALSE)) -> 0 | F13: =IF(E13>0,12*E13+10+25,"") ->  | G13: =IF(D13="No",0,VLOOKUP(D13,'USER INTERFACE'!$B$60:$I83,8,FALSE)) -> 0 | I13: =IF(G13='USER INTERFACE'!$U$38,IF(F13<>"",F13*$N$17,0),0) -> 0
D14: No | E14: =IF(D14="No",0,VLOOKUP(D14,'USER INTERFACE'!$B$60:$H$79,5,FALSE)) -> 0 | F14: =IF(E14>0,12*E14+10+25,"") ->  | G14: =IF(D14="No",0,VLOOKUP(D14,'USER INTERFACE'!$B$60:$I84,8,FALSE)) -> 0 | I14: =IF(G14='USER INTERFACE'!$U$38,IF(F14<>"",F14*$N$17,0),0) -> 0
D15: No | E15: =IF(D15="No",0,VLOOKUP(D15,'USER INTERFACE'!$B$60:$H$79,5,FALSE)) -> 0 | G15: =IF(D15="No",0,VLOOKUP(D15,'USER INTERFACE'!$B$60:$I85,8,FALSE)) -> 0 | I15: =IF(G15='USER INTERFACE'!$U$38,IF(F15<>"",F15*$N$17,0),0) -> 0 | L15: <-- $7,500 cost from Gill, includes excavation -- upped to $12,000 based on bid tab
D16: No | E16: =IF(D16="No",0,VLOOKUP(D16,'USER INTERFACE'!$B$60:$H$79,5,FALSE)) -> 0 | G16: =IF(D16="No",0,VLOOKUP(D16,'USER INTERFACE'!$B$60:$I86,8,FALSE)) -> 0 | I16: =IF(G16='USER INTERFACE'!$U$38,IF(F16<>"",F16*$N$17,0),0) -> 0
D17: No | E17: =IF(D17="No",0,VLOOKUP(D17,'USER INTERFACE'!$B$60:$H$79,5,FALSE)) -> 0 | G17: =IF(D17="No",0,VLOOKUP(D17,'USER INTERFACE'!$B$60:$I87,8,FALSE)) -> 0 | I17: =IF(G17='USER INTERFACE'!$U$38,IF(F17<>"",F17*$N$17,0),0) -> 0 | M17: Assume | N17: 75 | O17: per foot for lighting
D18: No | E18: =IF(D18="No",0,VLOOKUP(D18,'USER INTERFACE'!$B$60:$H$79,5,FALSE)) -> 0 | G18: =IF(D18="No",0,VLOOKUP(D18,'USER INTERFACE'!$B$60:$I88,8,FALSE)) -> 0 | I18: =IF(G18='USER INTERFACE'!$U$38,IF(F18<>"",F18*$N$17,0),0) -> 0
D19: No | E19: =IF(D19="No",0,VLOOKUP(D19,'USER INTERFACE'!$B$60:$H$79,5,FALSE)) -> 0 | G19: =IF(D19="No",0,VLOOKUP(D19,'USER INTERFACE'!$B$60:$I89,8,FALSE)) -> 0 | I19: =IF(G19='USER INTERFACE'!$U$38,IF(F19<>"",F19*$N$17,0),0) -> 0
D20: No | E20: =IF(D20="No",0,VLOOKUP(D20,'USER INTERFACE'!$B$60:$H$79,5,FALSE)) -> 0 | G20: =IF(D20="No",0,VLOOKUP(D20,'USER INTERFACE'!$B$60:$I90,8,FALSE)) -> 0 | I20: =IF(G20='USER INTERFACE'!$U$38,IF(F20<>"",F20*$N$17,0),0) -> 0
D21: No | E21: =IF(D21="No",0,VLOOKUP(D21,'USER INTERFACE'!$B$60:$H$79,5,FALSE)) -> 0 | G21: =IF(D21="No",0,VLOOKUP(D21,'USER INTERFACE'!$B$60:$I91,8,FALSE)) -> 0 | I21: =IF(G21='USER INTERFACE'!$U$38,IF(F21<>"",F21*$N$17,0),0) -> 0
D22: No | E22: =IF(D22="No",0,VLOOKUP(D22,'USER INTERFACE'!$B$60:$H$79,5,FALSE)) -> 0 | G22: =IF(D22="No",0,VLOOKUP(D22,'USER INTERFACE'!$B$60:$I92,8,FALSE)) -> 0 | I22: =IF(G22='USER INTERFACE'!$U$38,IF(F22<>"",F22*$N$17,0),0) -> 0
D23: No | E23: =IF(D23="No",0,VLOOKUP(D23,'USER INTERFACE'!$B$60:$H$79,5,FALSE)) -> 0 | G23: =IF(D23="No",0,VLOOKUP(D23,'USER INTERFACE'!$B$60:$I93,8,FALSE)) -> 0 | I23: =IF(G23='USER INTERFACE'!$U$38,IF(F23<>"",F23*$N$17,0),0) -> 0
D24: No | E24: =IF(D24="No",0,VLOOKUP(D24,'USER INTERFACE'!$B$60:$H$79,5,FALSE)) -> 0 | G24: =IF(D24="No",0,VLOOKUP(D24,'USER INTERFACE'!$B$60:$I94,8,FALSE)) -> 0 | I24: =IF(G24='USER INTERFACE'!$U$38,IF(F24<>"",F24*$N$17,0),0) -> 0
D25: No | E25: =IF(D25="No",0,VLOOKUP(D25,'USER INTERFACE'!$B$60:$H$79,5,FALSE)) -> 0 | G25: =IF(D25="No",0,VLOOKUP(D25,'USER INTERFACE'!$B$60:$I95,8,FALSE)) -> 0 | I25: =IF(G25='USER INTERFACE'!$U$38,IF(F25<>"",F25*$N$17,0),0) -> 0
D26: No | E26: =IF(D26="No",0,VLOOKUP(D26,'USER INTERFACE'!$B$60:$H$79,5,FALSE)) -> 0 | G26: =IF(D26="No",0,VLOOKUP(D26,'USER INTERFACE'!$B$60:$I96,8,FALSE)) -> 0 | I26: =IF(G26='USER INTERFACE'!$U$38,IF(F26<>"",F26*$N$17,0),0) -> 0
D27: No | E27: =IF(D27="No",0,VLOOKUP(D27,'USER INTERFACE'!$B$60:$H$79,5,FALSE)) -> 0 | G27: =IF(D27="No",0,VLOOKUP(D27,'USER INTERFACE'!$B$60:$I97,8,FALSE)) -> 0 | I27: =IF(G27='USER INTERFACE'!$U$38,IF(F27<>"",F27*$N$17,0),0) -> 0
D28: No | E28: =IF(D28="No",0,VLOOKUP(D28,'USER INTERFACE'!$B$60:$H$79,5,FALSE)) -> 0 | G28: =IF(D28="No",0,VLOOKUP(D28,'USER INTERFACE'!$B$60:$I98,8,FALSE)) -> 0 | I28: =IF(G28='USER INTERFACE'!$U$38,IF(F28<>"",F28*$N$17,0),0) -> 0
C30: # of railroad culvert crossings? | E30: =SUMIF('USER INTERFACE'!H84:H91,"Underpass",'USER INTERFACE'!F84:F91) -> 0
D32: Crossing # | E32: Length | F32: Culvert Length | G32: Existing Culvert? | H32: Lighting | J32: Lighting Cost
A33: 1 | D33: =IFERROR(INDEX('USER INTERFACE'!$F$84:$F$91,SMALL(IF("Underpass"='USER INTERFACE'!$F$84:$K$91,ROW('USER INTERFACE'!$F$84:$F$91)-MIN(ROW('USER INTERFACE'!$F$84:$F$91))+1,""),ROW()-32)),"No") -> No | E33: =IF(D33="No",0,VLOOKUP(D33,'USER INTERFACE'!$F$84:$K$91,2,FALSE)) -> 0 | F33: =IF(E33>0,E33+200,0) -> 0 | G33: =IF(D33="No",0,VLOOKUP(D33,'USER INTERFACE'!$F$84:$K$91,4,FALSE)) -> 0 | H33: =IF(D33="No",0,VLOOKUP(D33,'USER INTERFACE'!$F$84:$J$91,5,FALSE)) -> 0 | J33: =IF(H33='USER INTERFACE'!$U$38,IF(F33<>"",F33*$N$17,0),0) -> 0
A34: 2 | D34: No | E34: =IF(D34="No",0,VLOOKUP(D34,'USER INTERFACE'!$F$84:$K$91,2,FALSE)) -> 0 | F34: =IF(E34>0,E34+20,0) -> 0 | G34: =IF(D34="No",0,VLOOKUP(D34,'USER INTERFACE'!$F$84:$K$91,4,FALSE)) -> 0 | H34: =IF(D34="No",0,VLOOKUP(D34,'USER INTERFACE'!$F$84:$J$91,5,FALSE)) -> 0 | J34: =IF(H34='USER INTERFACE'!$U$38,IF(F34<>"",F34*$N$17,0),0) -> 0
A35: 3 | D35: No | E35: =IF(D35="No",0,VLOOKUP(D35,'USER INTERFACE'!$F$84:$K$91,2,FALSE)) -> 0 | F35: 0 | G35: =IF(D35="No",0,VLOOKUP(D35,'USER INTERFACE'!$F$84:$K$91,4,FALSE)) -> 0 | H35: =IF(D35="No",0,VLOOKUP(D35,'USER INTERFACE'!$F$84:$J$91,5,FALSE)) -> 0 | J35: =IF(H35='USER INTERFACE'!$U$38,IF(F35<>"",F35*$N$17,0),0) -> 0
A36: 4 | D36: No | E36: =IF(D36="No",0,VLOOKUP(D36,'USER INTERFACE'!$F$84:$K$91,2,FALSE)) -> 0 | F36: 0 | G36: =IF(D36="No",0,VLOOKUP(D36,'USER INTERFACE'!$F$84:$K$91,4,FALSE)) -> 0 | H36: =IF(D36="No",0,VLOOKUP(D36,'USER INTERFACE'!$F$84:$J$91,5,FALSE)) -> 0 | J36: =IF(H36='USER INTERFACE'!$U$38,IF(F36<>"",F36*$N$17,0),0) -> 0
A37: 5 | D37: No | E37: =IF(D37="No",0,VLOOKUP(D37,'USER INTERFACE'!$F$84:$K$91,2,FALSE)) -> 0 | F37: 0 | G37: =IF(D37="No",0,VLOOKUP(D37,'USER INTERFACE'!$F$84:$K$91,4,FALSE)) -> 0 | H37: =IF(D37="No",0,VLOOKUP(D37,'USER INTERFACE'!$F$84:$J$91,5,FALSE)) -> 0 | J37: =IF(H37='USER INTERFACE'!$U$38,IF(F37<>"",F37*$N$17,0),0) -> 0
A38: 6 | D38: No | E38: =IF(D38="No",0,VLOOKUP(D38,'USER INTERFACE'!$F$84:$K$91,2,FALSE)) -> 0 | F38: 0 | G38: =IF(D38="No",0,VLOOKUP(D38,'USER INTERFACE'!$F$84:$K$91,4,FALSE)) -> 0 | H38: =IF(D38="No",0,VLOOKUP(D38,'USER INTERFACE'!$F$84:$J$91,5,FALSE)) -> 0 | J38: =IF(H38='USER INTERFACE'!$U$38,IF(F38<>"",F38*$N$17,0),0) -> 0
A39: 7 | D39: No | E39: =IF(D39="No",0,VLOOKUP(D39,'USER INTERFACE'!$F$84:$K$91,2,FALSE)) -> 0 | F39: 0 | G39: =IF(D39="No",0,VLOOKUP(D39,'USER INTERFACE'!$F$84:$K$91,4,FALSE)) -> 0 | H39: =IF(D39="No",0,VLOOKUP(D39,'USER INTERFACE'!$F$84:$J$91,5,FALSE)) -> 0 | J39: =IF(H39='USER INTERFACE'!$U$38,IF(F39<>"",F39*$N$17,0),0) -> 0
A40: 8 | D40: No | E40: =IF(D40="No",0,VLOOKUP(D40,'USER INTERFACE'!$F$84:$K$91,2,FALSE)) -> 0 | F40: 0 | G40: =IF(D40="No",0,VLOOKUP(D40,'USER INTERFACE'!$F$84:$K$91,4,FALSE)) -> 0 | H40: =IF(D40="No",0,VLOOKUP(D40,'USER INTERFACE'!$F$84:$J$91,5,FALSE)) -> 0 | J40: =IF(H40='USER INTERFACE'!$U$38,IF(F40<>"",F40*$N$17,0),0) -> 0
D42: = Price not included in MassDOT Database.
H43: Total Cost for Culvert | I43: =SUM(J7:J40) -> 0 | J43: DOLLARS

Sheet RETAINING WALL (hidden)
C2: CALC'D BY: | D2: KA | E2: DATE: | F2: 2017-11-03 | H2: CITY: | I2: =AREA!I2 -> 0
C3: CHK'D BY: | D3: KR | E3: DATE: | F3: 2017-11-15 | H3: PROJECT: | I3: =AREA!I3 -> 0
M5: Clear/flat | N5: 26
M6: Roadway | N6: 27
C7: Existing Conditions | E7: ='USER INTERFACE'!G18 -> 0 | F7: ='USER INTERFACE'!H18 -> 0 | G7: ='USER INTERFACE'!I18 -> 0 | H7: ='USER INTERFACE'!J18 -> 0 | M7: Wooded/hilly | N7: 28
C8: Length | E8: ='USER INTERFACE'!G17 -> 0 | F8: ='USER INTERFACE'!H17 -> 0 | G8: ='USER INTERFACE'!I17 -> 0 | H8: ='USER INTERFACE'!J17 -> 0 | M8: Waterfront | N8: 29
C10: % of total cost required for retaining walls
D11: Clear/flat | G11: 0.01 | H11: =SUMIF($E$7:$H$7,D11,$E$8:$H$8) -> 0
D12: Waterfront | G12: 0.05 | H12: =SUMIF($E$7:$H$7,D12,$E$8:$H$8) -> 0
D13: Roadway | G13: 0 | H13: 0
D14: Wooded/hilly | G14: 0.1 | H14: 0
D15: Utility Corridor | G15: 0.04 | H15: 0
D16: =SUM(SUMMARY!I13+SUMMARY!I19) -> 0 | E16: * | F16: =IF(AREA!H31>0,(G11*H11+G12*H12+G13*H13+G14*H14+G15*H15)/SUM(H11:H15),0) -> 0 | G16: = | H16: =D16*F16 -> 0 | J16: =H16 -> 0
C17: Cost if there are resource areas to be avoided | G17: % Resource Area | H17: =IF(AREA!H31>0,AREA!H33/AREA!H31,0) -> 0
D18: %-age of Resource Areas | G18: Multiplier
D19: 0 | E19: to | F19: 10 | G19: 0.02 | H19: =IF(AND(D19<=$H$17,F19>$H$17),"X","") -> X
D20: =F19 -> 10 | E20: to | F20: 20 | G20: 0.04 | H20: =IF(AND(D20<=$H$17,F20>$H$17),"X","") -> 
D21: =F20 -> 20 | E21: to | F21: 30 | G21: 0.06 | I21: =IF(H21="","",$D$29*(G21-1)) -> 
D22: 30 | E22: to | F22: 40 | G22: 0.08
D23: =F22 -> 40 | E23: to | F23: 50 | G23: 0.1
D24: 50 | E24: to | F24: 60 | G24: 0.12
D25: 60 | E25: to | F25: 70 | G25: 0.14
D26: 70 | E26: to | F26: 80 | G26: 0.16
D27: 80 | E27: to | F27: 90 | G27: 0.18
D28: 90 | E28: to | F28: 100 | G28: 0.2
D29: =D16 -> 0 | E29: * | F29: =VLOOKUP("X",CHOOSE({2,1},$G$19:$G$28,$H$19:$H$28),2,0) -> 0.02 | G29: = | H29: =D29*F29 -> 0 | J29: =H29 -> 0
C31: Cost if there are steep drop-offs | H31: ='USER INTERFACE'!$I$27 -> 0
D32: =D16 -> 0 | E32: * | F32: =IF(H31="Yes",0.02,0) -> 0 | G32: = | H32: =D32*F32 -> 0 | J32: =H32 -> 0
C33: Cost if ROW is constrained | G33: ='USER INTERFACE'!$I$29 -> 0
D34: =D32 -> 0 | E34: * | F34: =IF($G$33='USER INTERFACE'!$X$28,0.01,IF($G$33='USER INTERFACE'!$X$29,0.03,0.05)) -> 0.05 | G34: = | H34: =D34*F34 -> 0 | J34: =H34 -> 0
C35: Cost if bodies of water being crossed | H35: ='USER INTERFACE'!$I$33 -> 0
D36: =D34 -> 0 | E36: * | F36: =H35/50 -> 0 | G36: = | H36: =D36*F36 -> 0 | J36: =H36 -> 0
C38: Cost for retaining walls associated with bridges & culverts
G39: Cost per foot | L39: ** cost for concrete cantilever wall w/ backfill+footing
D40: Railroad bridges + culverts | F40: =SUM(CULVERT!$F$33:$F$40)-SUM(CULVERT!$E$33:$E$40)+SUM(BRIDGE!$J$29:$J$36)-SUM(BRIDGE!$H$29:$H$36) -> 0 | G40: 2050 | H40: = | J40: =F40*G40 -> 0
D41: Other bridges + culverts | F41: =SUM(CULVERT!$F$13:$F$28)-SUM(CULVERT!$E$13:$E$28)*14+SUM(BRIDGE!$F$29:$F$36)-SUM(BRIDGE!$D$29:$D$36)+SUM(BRIDGE!F9:F24)-SUM(BRIDGE!E9:E24)*14 -> 0 | G41: 970 | H41: = | J41: =F41*G41 -> 0
H43: Total Cost for Retaining Wall | I43: =SUM(J7:J42) -> 0 | J43: DOLLARS
B50: 685 | C50: STONE MASONRY WALL | F50: =F52 ->  | G50: CY | H50: =VLOOKUP(B50,PRICES!$B$2:$H$9998,7,FALSE) -> 797.36 | I50: =F50*H50 -> 
B52: Length (ft.) | C52: Width (ft.) | D52: Depth (ft.) | E52: = | F52: =(B53*C53*D53)/27 ->  | G52: CY
B53: =AREA!#REF! ->  | C53: =AVERAGE(0.5*D53,18/12) ->  | D53: =AREA!#REF! -> 
B55: Width calculated per dimensions on MassDOT DWG E302.2.0.
B57: 151.2 | C57: GRAVEL BORROW FOR BACKFILLING STRUCTURES AND PIPES | F57: =F59 ->  | G57: CY | H57: =VLOOKUP(B57,PRICES!$B$2:$H$9998,7,FALSE) -> 49.69 | I57: =F57*H57 -> 
B59: Length (ft.) | C59: Width (ft.) | D59: Depth (ft.) | E59: = | F59: =(B60*C60*D60)/27 ->  | G59: CY
B60: =AREA!#REF! ->  | C60: =1+(0.5*D60-18/12)*0.5 ->  | D60: =AREA!#REF! -> 
B62: 905 | C62: 4000 PSI, 3/8 IN., 660 CEMENT CONCRETE | F62: =F64 ->  | G62: CY | H62: =VLOOKUP(B62,PRICES!$B$2:$H$9998,7,FALSE) -> 3729.22 | I62: =F62*H62 -> 
B64: Length (ft.) | C64: Width (ft.) | D64: Depth (ft.) | E64: = | F64: =(B65*C65*D65)/27 ->  | G64: CY
B65: =AREA!#REF! ->  | C65: =AVERAGE(0.5*D65,18/12) ->  | D65: =AREA!#REF! -> 
C68: = Price not included in MassDOT Database.

Sheet BOARDWALK (hidden)
C2: CALC'D BY: | D2: KA | E2: DATE: | F2: 2017-10-30 | H2: CITY: | I2: =AREA!I2 -> 0
C3: CHK'D BY: | D3: KR | E3: DATE: | F3: 2017-11-15 | H3: PROJECT: | I3: =AREA!I3 -> 0
C8: 995.1 | D8: TIMBER BOARDWALK | G8: 1 | H8: LS | I8: =H11 -> 0 | J8: =G8*I8 -> 0
C10: COST PER LF | F10: 1500
C11: LENGTH OF BOARDWALK | F11: =F14 -> 0 | G11: FT | H11: =F10*F11 -> 0 | I11: LS
C13: path Length | F13: =AREA!$H$31 -> 0 | G13: FT | Q13: % Length | R13: Total Length
C14: User-inputted % Boardwalk Length | F14: ='USER INTERFACE'!$I$25 -> 0 | G14: FT | M14: User-input for resource areas:
N15: ='USER INTERFACE'!Y10 -> Minimal | P15: =IF('USER INTERFACE'!$I$23=BOARDWALK!N15,"X","") ->  | Q15: 0.05 | R15: =IF(P15="","",Q15*AREA!$H$31) -> 
N16: ='USER INTERFACE'!Y11 -> Moderate | P16: =IF('USER INTERFACE'!$I$23=BOARDWALK!N16,"X","") ->  | Q16: 0.15 | R16: =IF(P16="","",Q16*AREA!$H$31) -> 
N17: ='USER INTERFACE'!Y12 -> Advanced | P17: =IF('USER INTERFACE'!$I$23=BOARDWALK!N17,"X","") ->  | Q17: 0.45 | R17: =IF(P17="","",Q17*AREA!$H$31) -> 
D36: = Price not included in MassDOT Database.
F43: Total Cost for Boardwalk | I43: =SUM(J7:J40) -> 0 | J43: DOLLARS

Sheet LIGHTING (hidden)
C2: CALC'D BY: | D2: KA | E2: DATE: | F2: 2018-02-22 | H2: CITY: | I2: =AREA!I2 -> 0
C3: CHK'D BY: | E3: DATE: | H3: PROJECT: | I3: =AREA!I3 -> 0
C7: Path Length: | D7: =AREA!$H$31 -> 0 | G7: OR | H7: Lighting Length | J7: ='USER INTERFACE'!$I$44 -> 0
C8: Assume light every 50' of path.
C10: 804.2 | D10: 2 INCH ELECTRICAL CONDUIT TYPE NM - PLASTIC (UL) | G10: =G12 -> 0 | H10: FT | I10: =IF(VLOOKUP(C10,PRICES!$B$2:$J$9998,9,FALSE)<>0,VLOOKUP(C10,PRICES!$B$2:$J$9998,9,FALSE),VLOOKUP(C10,PRICES!$B$2:$H$9998,7,FALSE)) -> 28.43 | J10: =G10*I10 -> 0
D11: Assume a 4' offset from each pullbox to the light poles
D12: 4 | E12: =G27 -> 0 | F12: = | G12: =D12*E12 -> 0 | H12: ft
C14: 804.3 | D14: 3 INCH ELECTRICAL CONDUIT TYPE NM - PLASTIC -(UL) | G14: =IF($J$7=0,$D$7,$J$7) -> 0 | H14: FT | I14: =IF(VLOOKUP(C14,PRICES!$B$2:$J$9998,9,FALSE)<>0,VLOOKUP(C14,PRICES!$B$2:$J$9998,9,FALSE),VLOOKUP(C14,PRICES!$B$2:$H$9998,7,FALSE)) -> 40.76 | J14: =G14*I14 -> 0
C15: 811.22 | D15: ELECTRIC HANDHOLE - SD2.022 | G15: =G27 -> 0 | H15: EA | I15: =IF(VLOOKUP(C15,PRICES!$B$2:$J$9998,9,FALSE)<>0,VLOOKUP(C15,PRICES!$B$2:$J$9998,9,FALSE),VLOOKUP(C15,PRICES!$B$2:$H$9998,7,FALSE)) -> 1200 | J15: 0
C16: 812.09 | D16: LIGHT STANDARD FOUNDATION PRECAST | G16: =G27 -> 0 | H16: EA | I16: =IF(VLOOKUP(C16,PRICES!$B$2:$J$9998,9,FALSE)<>0,VLOOKUP(C16,PRICES!$B$2:$J$9998,9,FALSE),VLOOKUP(C16,PRICES!$B$2:$H$9998,7,FALSE)) -> 2610 | J16: 0
C17: 813.4 | D17: WIRE TYPE 8 NO. 10 DIRECT BURIAL | G17: =G10*4 -> 0 | H17: FT | I17: =IF(VLOOKUP(C17,PRICES!$B$2:$J$9998,9,FALSE)<>0,VLOOKUP(C17,PRICES!$B$2:$J$9998,9,FALSE),VLOOKUP(C17,PRICES!$B$2:$H$9998,7,FALSE)) -> 1.53 | J17: 0
C18: 813.43 | D18: WIRE TYPE 8 NO. 4 DIRECT BURIAL | H18: FT | I18: =IF(VLOOKUP(C18,PRICES!$B$2:$J$9998,9,FALSE)<>0,VLOOKUP(C18,PRICES!$B$2:$J$9998,9,FALSE),VLOOKUP(C18,PRICES!$B$2:$H$9998,7,FALSE)) -> 2.58 | J18: 0
C19: 813.521 | D19: WIRE TYPE 10 #6 GROUNDING AND BONDING | G19: =H21 -> 0 | H19: FT | I19: 1.5 | J19: 0
E20: Item 804.3 | F20: Item 804.2
E21: =G14 -> 0 | F21: =G10 -> 0 | G21: = | H21: =E21+F21 -> 0 | I21: feet
C23: 813.72 | D23: GROUND ROD 10 FT. LONG | G23: =H25 -> 0 | H23: EA | I23: =IF(VLOOKUP(C23,PRICES!$B$2:$J$9998,9,FALSE)<>0,VLOOKUP(C23,PRICES!$B$2:$J$9998,9,FALSE),VLOOKUP(C23,PRICES!$B$2:$H$9998,7,FALSE)) -> 165 | J23: =G23*I23 -> 0
D24: Item 820.111 | E24: Item 823.61 | F24: Item 811.22
D25: =G27 -> 0 | E25: =G33 -> 0 | F25: =G15 -> 0 | G25: = | H25: =D25+E25+F25 -> 0
C27: 820.111 | D27: PATH LIGHTING FIXTURE "A" | G27: =G29 -> 0 | H27: EA | I27: 5000 | J27: =G27*I27 -> 0
C29: # Lights | D29: =IF($J$7=0,$D$7,$J$7) -> 0 | E29: 50 | F29: = | G29: =D29/E29 -> 0 | H29: fixtures
C31: 823.61 | D31: HIGHWAY LIGHTING LOAD CENTER NO.1 | G31: 1 | H31: LS | I31: =G33*G34 -> 0 | J31: =G31*I31 -> 0
D33: =IF($J$7=0,$D$7,$J$7) -> 0 | E33: 1000 | F33: = | G33: =IF(D33>0,MAX(D33/E33,1),0) -> 0 | H33: load centers
F34: Say | G34: 10000 | H34: /ea
C35: ###.## | D35: Bridge Lighting | G35: 1 | H35: LS | I35: =SUM(BRIDGE!I9:I24,BRIDGE!I29:I36,BRIDGE!I41:I48) -> 0 | J35: =G35*I35 -> 0
C36: See bridge tab for calculations.
C38: ###.## | D38: Culvert Lighting | G38: 1 | H38: LS | I38: =SUM(CULVERT!I13:I28,CULVERT!J33:J40) -> 0 | J38: =G38*I38 -> 0
C39: See culvert tab for calculations.
C41: ###.## | D41: Intersection Lighting | G41: Length of intersections: | I41: =SUMIFS('USER INTERFACE'!F60:F79,'USER INTERFACE'!H60:H79,'USER INTERFACE'!S26,'USER INTERFACE'!I60:I79,'USER INTERFACE'!U38)*12+10*E42 -> 0
D42: # Crossings: | E42: =COUNTIFS('USER INTERFACE'!H60:H79,'USER INTERFACE'!S26,'USER INTERFACE'!I60:I79,'USER INTERFACE'!U38) -> 0 | G42: # lights | I42: =E42*2 -> 0
C44: 804.2 | D44: 2 INCH ELECTRICAL CONDUIT TYPE NM - PLASTIC (UL) | G44: =G46 -> 0 | H44: FT | I44: =IF(VLOOKUP(C44,PRICES!$B$2:$J$9998,9,FALSE)<>0,VLOOKUP(C44,PRICES!$B$2:$J$9998,9,FALSE),VLOOKUP(C44,PRICES!$B$2:$H$9998,7,FALSE)) -> 28.43 | J44: =G44*I44 -> 0
D45: Assume a 4' offset from each pullbox to the light poles
D46: 4 | E46: =G61 -> 0 | F46: = | G46: =D46*E46 -> 0 | H46: ft
C48: 804.3 | D48: 3 INCH ELECTRICAL CONDUIT TYPE NM - PLASTIC -(UL) | G48: =I41 -> 0 | H48: FT | I48: =IF(VLOOKUP(C48,PRICES!$B$2:$J$9998,9,FALSE)<>0,VLOOKUP(C48,PRICES!$B$2:$J$9998,9,FALSE),VLOOKUP(C48,PRICES!$B$2:$H$9998,7,FALSE)) -> 40.76 | J48: =G48*I48 -> 0
C49: 811.22 | D49: ELECTRIC HANDHOLE - SD2.022 | G49: =G61 -> 0 | H49: EA | I49: =IF(VLOOKUP(C49,PRICES!$B$2:$J$9998,9,FALSE)<>0,VLOOKUP(C49,PRICES!$B$2:$J$9998,9,FALSE),VLOOKUP(C49,PRICES!$B$2:$H$9998,7,FALSE)) -> 1200 | J49: 0
C50: 812.09 | D50: LIGHT STANDARD FOUNDATION PRECAST | G50: =G61 -> 0 | H50: EA | I50: =IF(VLOOKUP(C50,PRICES!$B$2:$J$9998,9,FALSE)<>0,VLOOKUP(C50,PRICES!$B$2:$J$9998,9,FALSE),VLOOKUP(C50,PRICES!$B$2:$H$9998,7,FALSE)) -> 2610 | J50: 0
C51: 813.4 | D51: WIRE TYPE 8 NO. 10 DIRECT BURIAL | G51: =G44*4 -> 0 | H51: FT | I51: =IF(VLOOKUP(C51,PRICES!$B$2:$J$9998,9,FALSE)<>0,VLOOKUP(C51,PRICES!$B$2:$J$9998,9,FALSE),VLOOKUP(C51,PRICES!$B$2:$H$9998,7,FALSE)) -> 1.53 | J51: 0
C52: 813.43 | D52: WIRE TYPE 8 NO. 4 DIRECT BURIAL | H52: FT | I52: =IF(VLOOKUP(C52,PRICES!$B$2:$J$9998,9,FALSE)<>0,VLOOKUP(C52,PRICES!$B$2:$J$9998,9,FALSE),VLOOKUP(C52,PRICES!$B$2:$H$9998,7,FALSE)) -> 2.58 | J52: 0
C53: 813.521 | D53: WIRE TYPE 10 #6 GROUNDING AND BONDING | G53: =H55 -> 0 | H53: FT | I53: 1.5 | J53: 0
E54: Item 804.3 | F54: Item 804.2
E55: =G48 -> 0 | F55: =G44 -> 0 | G55: = | H55: =E55+F55 -> 0 | I55: feet
C57: 813.72 | D57: GROUND ROD 10 FT. LONG | G57: =H59 -> 0 | H57: EA | I57: =IF(VLOOKUP(C57,PRICES!$B$2:$J$9998,9,FALSE)<>0,VLOOKUP(C57,PRICES!$B$2:$J$9998,9,FALSE),VLOOKUP(C57,PRICES!$B$2:$H$9998,7,FALSE)) -> 165 | J57: =G57*I57 -> 0
E58: Item 820.111 | F58: Item 811.22
E59: =G61 -> 0 | F59: =G49 -> 0 | G59: = | H59: =E59+F59 -> 0
C61: 820.111 | D61: ROAD LIGHTING FIXTURE "A" | G61: =I42 -> 0 | H61: EA | I61: 6000 | J61: =G61*I61 -> 0
D63: = Price not included in MassDOT Database.
F64: Total Cost for Lighting | I64: =IF('USER INTERFACE'!I43="No",0,SUM(J9:J62)) -> 0 | J64: DOLLARS

Sheet SECURITY (hidden)
C2: CALC'D BY: | D2: KA | E2: DATE: | F2: 2017-10-31 | H2: CITY: | I2: =AREA!I2 -> 0
C3: CHK'D BY: | D3: KR | E3: DATE: | F3: 2017-11-15 | H3: PROJECT: | I3: =AREA!I3 -> 0
C7: Length Requiring Secuity: | E7: =IF('USER INTERFACE'!$I$45='USER INTERFACE'!$X$16,LIGHTING!$D$29,0)+IF(ISNUMBER(SEARCH("Partial",'USER INTERFACE'!$I$45)),'USER INTERFACE'!$I$46,0) -> 0 | F7: # Crossings Requiring Security: | I7: =IF(ISNUMBER(SEARCH("Crossings",'USER INTERFACE'!$I$45)),'USER INTERFACE'!$I$31,0) -> 0
C9: Assume a camera every 500 feet of path.
C10: Assume a camera at each roadway crossing, if required by user inputs.
C12: COST PER CAMERA | F12: 25000
C13: NUMBER OF CAMERAS | F13: =ROUNDUP(E7/500, -0.1)+I7 -> 0 | G13: EA
F14: =F12*F13 -> 0 | J14: =F14 -> 0
D39: = Price not included in MassDOT Database.
F43: Total Cost for Security | I43: =SUM(J9:J38) -> 0 | J43: DOLLARS

Sheet DRAINAGE (hidden)
C2: CALC'D BY: | D2: KA | E2: DATE: | F2: 2017-10-13 | H2: CITY: | I2: =AREA!I2 -> 0
C3: CHK'D BY: | D3: KR | E3: DATE: | F3: 2017-11-15 | H3: PROJECT: | I3: =AREA!I3 -> 0
C7: Sidepath Length: | D7: =SUMIF('USER INTERFACE'!$G$19:$J$19,'USER INTERFACE'!$U$29,'USER INTERFACE'!$G$17:$J$17) -> 0 | E7: ft
C8: Other SUP Length: | D8: =AREA!H31-AREA!H33-DRAINAGE!D7 -> 0 | E8: ft | F8: excluding boardwalks
C10: If closed system…
C11: Assume a catch basin and manhole every 250' along length. Only use if roadway sidepath.
C13: 201 | D13: CATCH BASIN | G13: =ROUNDUP(D7/250,0) -> 0 | H13: EA | I13: =IF(VLOOKUP(C13,PRICES!$B$2:$J$9998,9,FALSE)<>0,VLOOKUP(C13,PRICES!$B$2:$J$9998,9,FALSE),VLOOKUP(C13,PRICES!$B$2:$H$9998,7,FALSE)) -> 4430.75 | J13: =G13*I13 -> 0
C15: 221 | D15: FRAME AND COVER | G15: =G13 -> 0 | H15: EA | I15: =IF(VLOOKUP(C15,PRICES!$B$2:$J$9998,9,FALSE)<>0,VLOOKUP(C15,PRICES!$B$2:$J$9998,9,FALSE),VLOOKUP(C15,PRICES!$B$2:$H$9998,7,FALSE)) -> 864.4 | J15: =G15*I15 -> 0
C17: 241.12 | D17: 12 INCH REINFORCED CONCRETE PIPE | G17: =D7 -> 0 | H17: FT | I17: =IF(VLOOKUP(C17,PRICES!$B$2:$J$9998,9,FALSE)<>0,VLOOKUP(C17,PRICES!$B$2:$J$9998,9,FALSE),VLOOKUP(C17,PRICES!$B$2:$H$9998,7,FALSE)) -> 104.73 | J17: =G17*I17 -> 0
C19: 202 | D19: MANHOLE | G19: =G13 -> 0 | H19: EA | I19: =IF(VLOOKUP(C19,PRICES!$B$2:$J$9998,9,FALSE)<>0,VLOOKUP(C19,PRICES!$B$2:$J$9998,9,FALSE),VLOOKUP(C19,PRICES!$B$2:$H$9998,7,FALSE)) -> 4817.26 | J19: =G19*I19 -> 0
C23: If open system…
C24: Assume erosion control and hydoseed, but drainage is largely accounted for in grading.
G26: =D8 -> 0 | H26: LF | I26: 4 | J26: =G26*I26 -> 0
C37: 506 | D37: GRANITE CURB TYPE VB - STRAIGHT | G37: =G38 -> 0 | H37: FT | I37: =IF(VLOOKUP(C37,PRICES!$B$2:$J$9998,9,FALSE)<>0,VLOOKUP(C37,PRICES!$B$2:$J$9998,9,FALSE),VLOOKUP(C37,PRICES!$B$2:$H$9998,7,FALSE)) -> 44.03 | J37: =G37*I37 -> 0
C38: Curb? | D38: =IF('USER INTERFACE'!$I$16='USER INTERFACE'!$U$29,"Yes","No") -> No | G38: =SUMIF('USER INTERFACE'!$G$19:$J$19,'USER INTERFACE'!$U$29,'USER INTERFACE'!$G$17:$J$17) -> 0 | H38: FT
D41: = Price not included in MassDOT Database.
F43: Total Cost for Drainage | I43: =SUM(J13:J40) -> 0 | J43: DOLLARS

Sheet LANDSCAPING (hidden)
C2: CALC'D BY: | D2: KA | E2: DATE: | F2: 2017-10-16 | H2: CITY: | I2: =AREA!I2 -> 0
C3: CHK'D BY: | D3: KR | E3: DATE: | F3: 2017-11-15 | H3: PROJECT: | I3: =AREA!I3 -> 0
C8: 102.99 | D8: LANDSCAPING | G8: 1 | H8: LS | I8: =C11*F13 -> 0 | J8: =G8*I8 -> 0
C10: Construction Cost (without landscaping or structural)
C11: =ROUND(ASPHALT!$I$43+'POROUS ASPHALT'!$I$43+'STONE DUST'!I43+CONCRETE!$I$43+MISC!$I$43+'CRUSHED STONE'!$I$43+DRAINAGE!$I$43+INTERSECTIONS!$I$43+MISC!$I$43,-2) -> 0
C13: % cost of landscaping? | E13: ='USER INTERFACE'!$I$38 -> 0 | F13: =IF(E13='USER INTERFACE'!$Y$10,0.02,IF(E13='USER INTERFACE'!$Y$11,0.05,0.09)) -> 0.09
C15: 707.1 | D15: PARK BENCH | G15: =ROUNDUP(AREA!$H$31/2640,0) -> 0 | H15: EA | I15: =IF(VLOOKUP(C15,PRICES!$B$2:$J$9998,9,FALSE)<>0,VLOOKUP(C15,PRICES!$B$2:$J$9998,9,FALSE),VLOOKUP(C15,PRICES!$B$2:$H$9998,7,FALSE)) -> 2498.41 | J15: =G15*I15 -> 0
C17: 707.9 | D17: BICYCLE RACK | G17: =ROUNDUP(AREA!$H$31/2640,0) -> 0 | H17: EA | I17: =IF(VLOOKUP(C17,PRICES!$B$2:$J$9998,9,FALSE)<>0,VLOOKUP(C17,PRICES!$B$2:$J$9998,9,FALSE),VLOOKUP(C17,PRICES!$B$2:$H$9998,7,FALSE)) -> 890.13 | J17: =G17*I17 -> 0
C19: 707.6 | D19: PICNIC TABLE | G19: =ROUNDUP(AREA!$H$31/2640,0) -> 0 | H19: EA | I19: 4000 | J19: =G19*I19 -> 0
C22: Assume one bench, park, and table every 1/2 mile.
C24: 751.7 | D24: COMPOST TOPDRESSING* | G24: =G28 -> 0 | H24: SY | I24: =IF(VLOOKUP(C24,PRICES!$B$2:$J$9998,9,FALSE)<>0,VLOOKUP(C24,PRICES!$B$2:$J$9998,9,FALSE),VLOOKUP(C24,PRICES!$B$2:$H$9998,7,FALSE)) -> 8.52 | J24: =G24*I24 -> 0
D26: Assume one length of project | G26: =AREA!$H$31 -> 0 | H26: ft
F27: Assume length of project * 6' width | G27: =G26*6 -> 0 | H27: sf
G28: =G27/9 -> 0 | H28: SY
D30: * Formerly COMPOST TOPSOIL
D39: = Price not included in MassDOT Database.
H43: Total Cost for Lansdcaping & Amenities | I43: =SUM(J7:J40) -> 0 | J43: DOLLARS

Sheet PARKING (hidden)
C2: CALC'D BY: | D2: KA | E2: DATE: | F2: 2018-04-11 | H2: CITY: | I2: =AREA!I2 -> 0
C3: CHK'D BY: | D3: DN | E3: DATE: | F3: 2018-04-11 | H3: PROJECT: | I3: =AREA!I3 -> 0
C7: # Parking Spaces | D7: ='USER INTERFACE'!I40 -> 0 | G7: Porous? | H7: ='USER INTERFACE'!I41 -> 0
C9: Area (SF) | D9: Area (SY) | E9: Depth (in.) | F9: Ton/sy/in | H9: Tons
C10: =D7*250 -> 0 | D10: =C10/9 -> 0 | E10: 4 | F10: 0.056 | H10: =C10*E10*F10 -> 0
C12: 120.1 | D12: UNCLASSIFIED EXCAVATION | G12: =SUM(G14:G14) -> 0 | H12: CY | I12: =IF(VLOOKUP(C12,PRICES!$B$2:$J$9998,9,FALSE)<>0,VLOOKUP(C12,PRICES!$B$2:$J$9998,9,FALSE),VLOOKUP(C12,PRICES!$B$2:$H$9998,7,FALSE)) -> 45.87 | J12: =G12*I12 -> 0 | N12: 12340.74074
D14: =C10 -> 0 | E14: =16/12 -> 1.333333333 | F14: = | G14: =(D14*E14)/27 -> 0 | H14: CY
C16: 151 | D16: GRAVEL BORROW | G16: =G18 -> 0 | H16: CY | I16: =IF(VLOOKUP(C16,PRICES!$B$2:$J$9998,9,FALSE)<>0,VLOOKUP(C16,PRICES!$B$2:$J$9998,9,FALSE),VLOOKUP(C16,PRICES!$B$2:$H$9998,7,FALSE)) -> 45.07 | J16: =G16*I16 -> 0 | N16: 10097.22222
D18: =C10 -> 0 | E18: 1 | F18: = | G18: =(D18*E18)/27 -> 0 | H18: CY
C20: 170 | D20: FINE GRADING AND COMPACTING | G20: =G21 -> 0 | H20: SY | I20: =IF(VLOOKUP(C20,PRICES!$B$2:$J$9998,9,FALSE)<>0,VLOOKUP(C20,PRICES!$B$2:$J$9998,9,FALSE),VLOOKUP(C20,PRICES!$B$2:$H$9998,7,FALSE)) -> 5.8 | J20: =G20*I20 -> 0 | N20: 3216.666667
E21: =D10 -> 0 | F21: = | G21: =E21 -> 0 | H21: SY
K23: =G23*J23 -> 0
C27: =IF(H7='USER INTERFACE'!$Q$31,450.14,450.23) -> 450.23 | D27: =IF(C27=450.23,"SUPERPAVE SURFACE COURSE","POROUS PAVEMENT") -> SUPERPAVE SURFACE COURSE | G27: =ROUNDUP(H10,0) -> 0 | H27: TON | I27: =IF(C27=450.14,140,IF(VLOOKUP(C27,PRICES!$B$2:$J$9998,9,FALSE)<>0,VLOOKUP(C27,PRICES!$B$2:$J$9998,9,FALSE),VLOOKUP(C27,PRICES!$B$2:$H$9998,7,FALSE))) -> 118.58 | J27: =G27*I27 -> 0 | N27: 159986.4
C29: 156.01 | D29: #67 CRUSHED STONE FILTER BASE COURSE | G29: =G31 -> 0 | H29: CY | I29: 50 | J29: =G29*I29 -> 0 | N29: 62500
D31: =C10 -> 0 | E31: 0.1666666667 | F31: = | G31: =D31*E31/27 -> 0 | H31: CY
C33: 156.02 | D33: #57 CRUSHED STONE RESERVOIR SUB-BASE COURSE | G33: =G35 -> 0 | H33: CY | I33: 55 | J33: =G33*I33 -> 0 | N33: 412500
D35: =C10 -> 0 | E35: 1 | F35: = | G35: =D35*E35/27 -> 0 | H35: CY
C37: 698.1 | D37: GEOTEXTILE FABRIC FOR STABILIZATION | G37: =H39 -> 0 | H37: SY | I37: =IF(VLOOKUP(C37,PRICES!$B$2:$J$9998,9,FALSE)<>0,VLOOKUP(C37,PRICES!$B$2:$J$9998,9,FALSE),VLOOKUP(C37,PRICES!$B$2:$H$9998,7,FALSE)) -> 6.17 | J37: =G37*I37 -> 0 | N37: 4233.333333
C39: Fabric on bottom of trenches (total area of Porous Pavement) | H39: =$D$10 -> 0 | I39: SY
C41: 101 | D41: CLEARING AND GRUBBING | G41: =C10/43560 -> 0 | H41: A | I41: =IF(VLOOKUP(C41,PRICES!$B$2:$J$9998,9,FALSE)<>0,VLOOKUP(C41,PRICES!$B$2:$J$9998,9,FALSE),VLOOKUP(C41,PRICES!$B$2:$H$9998,7,FALSE)) -> 35950.71 | J41: =G41*I41 -> 0 | N41: 3485.668044
C43: Assume 1 CB, 10' drainage pipe, and 2 leaching basins for every 20 parking spaces
C44: 201 | D44: CATCH BASIN | G44: =ROUND(D7/20,0) -> 0 | H44: EA | I44: =IF(VLOOKUP(C44,PRICES!$B$2:$J$9998,9,FALSE)<>0,VLOOKUP(C44,PRICES!$B$2:$J$9998,9,FALSE),VLOOKUP(C44,PRICES!$B$2:$H$9998,7,FALSE)) -> 4430.75 | J44: =G44*I44 -> 0
C46: 221 | D46: FRAME AND COVER | G46: =G44 -> 0 | H46: EA | I46: =IF(VLOOKUP(C46,PRICES!$B$2:$J$9998,9,FALSE)<>0,VLOOKUP(C46,PRICES!$B$2:$J$9998,9,FALSE),VLOOKUP(C46,PRICES!$B$2:$H$9998,7,FALSE)) -> 864.4 | J46: =G46*I46 -> 0
C48: 241.12 | D48: 12 INCH REINFORCED CONCRETE PIPE | G48: =10*G46 -> 0 | H48: FT | I48: =IF(VLOOKUP(C48,PRICES!$B$2:$J$9998,9,FALSE)<>0,VLOOKUP(C48,PRICES!$B$2:$J$9998,9,FALSE),VLOOKUP(C48,PRICES!$B$2:$H$9998,7,FALSE)) -> 104.73 | J48: =G48*I48 -> 0
C50: 205 | D50: LEACHING BASIN | G50: =G44*2 -> 0 | H50: EA | I50: =IF(VLOOKUP(C50,PRICES!$B$2:$J$9998,9,FALSE)<>0,VLOOKUP(C50,PRICES!$B$2:$J$9998,9,FALSE),VLOOKUP(C50,PRICES!$B$2:$H$9998,7,FALSE)) -> 6448.94 | J50: =G50*I50 -> 0
D52: = Price not included in MassDOT Database.
H54: Total Cost for Parking | I54: =J41+IF($H$7='USER INTERFACE'!$Q$31,$J$12+SUM($J$27:$J$37),IF($H$7='USER INTERFACE'!$Q$32,SUM($J$12:$J$27,J44:J50),0)) -> 0 | J54: DOLLARS
